{"text_format":"1","workbook":"xlsx","n_sheets":13,"sheets":["Main Page","Budget Check","Narrative","Budget","Transferability","Title III Program","IY","Private Schools","GEPA","Expenditure Descriptions","General Assurances","Program Specific Assurances","Prefills"],"not_rendered":{"charts":0,"images":4,"macros":1,"external_links":0,"defined_names":28,"comments":3,"pivot_tables":0},"unopened":[],"bounds":{"document_bytes":16777216,"sheet_cells":100000,"rows_first":2000,"rows_last":500,"rows_between":2000,"halvings":0,"cell_chars":16384,"cell_head_chars":4096},"cells_cut":0,"cells_raw":0,"read":"whole","date_system":"1900"}

{"sheet":"Main Page","index":0,"n_rows":36,"n_cols":15,"rows_kept":36,"cut":false,"hidden":false,"merged":[[25,16,25,18],[0,16,0,18],[2,16,2,18],[4,16,4,18],[16,16,16,18],[3,16,3,18],[15,16,15,18],[13,16,13,18],[35,10,35,13],[27,3,27,5],[28,3,28,5],[25,3,25,5],[26,3,26,5],[29,3,29,5],[32,10,32,13],[33,10,33,13],[30,3,30,5],[23,3,23,5],[24,3,24,5],[21,3,21,5],[22,3,22,5],[34,10,34,13],[21,10,21,13],[22,10,22,13],[23,10,23,13],[24,10,24,13],[25,10,25,13],[26,10,26,13],[27,10,27,13],[28,10,28,13],[29,10,29,13],[30,10,30,13],[31,10,31,13],[19,10,19,13],[19,3,19,5],[16,2,16,5],[16,10,16,13],[20,3,20,5],[18,3,18,5],[18,10,18,13],[20,10,20,13],[17,2,17,5],[17,10,17,13],[7,0,7,5],[12,5,12,10],[13,5,13,10],[6,1,6,13],[15,1,15,13],[11,1,11,13],[9,1,9,13],[10,1,10,13],[14,1,14,13],[12,0,12,4],[13,0,13,4],[0,1,0,13],[5,1,5,13],[4,1,4,13],[3,1,3,13],[2,1,2,13],[1,1,1,13]]}
["If using a screen reader and having problems with this application, please call 804-750-8626 for assistance.","Virginia Department of Education",null,null,null,null,null,null,null,null,null,null,null,null,3]
[null,"Office of ESEA Programs"]
[null,"P. O. Box 2120"]
[null,"Richmond, Virginia 23218-2120"]
[]
[null,"Title III, Part A, Language Instruction for English Learners and Immigrant Students "]
[]
["Due by:",null,null,null,null,null,"2024-07-01"]
[null,null,null,null,null,null,{"$f":"YEAR(G8) & \"-\" & YEAR(G8)+1","v":"2024-2025"}]
[]
[]
[null,"Select the division name from the dropdown box.  The division number will auto populate."]
["School Division:"]
["Division Number:",null,null,null,null,{"$f":"IF(ISBLANK(F13),\" \",VLOOKUP(F13,Prefills!A6:B144,2))","v":" "}]
[]
[]
[null,null,"Select the appropriate tab(s) and press the \"Print\" button.",null,null,null,null,null,null,null,"Select the appropriate button to move to the desired section within the application."]
[null,null,"Print Application",null,null,null,null,null,null,null,"Application Directory"]
[null,"Tab #","Check Mark","Tab Name",null,null,null,null,"Button #",null,"Push This Button to Go to the Desired Page"]
[false,null,null,"Print All Tabs below",null,null,null,null,1,"B6"]
[false,null,null,"Budget Check",null,null,null,null,2,"D8"]
[false,null,null,"Narrative",null,null,null,null,3,"B2"]
[false,null,null,"Budget",null,null,null,null,4,"B43"]
[false,null,null,"Transferability",null,null,null,null,5,"B2"]
[false,null,null,"Title III Program",null,null,null,null,6,"B42"]
[false,null,null,"IY",null,null,null,null,7,"B2"]
[false,null,null,"Private Schools",null,null,null,null,8,"B75"]
[false,null,null,"GEPA",null,null,null,null,9,"B144"]
[false,null,null,"Expenditure Descriptions",null,null,null,null,10,"B2"]
[false,null,null,"General Assurances",null,null,null,null,11,"B2"]
[false,null,null,"Program Specific Assurances",null,null,null,null,12,"B30"]
[null,null,null,null,null,null,null,null,13,"B2"]
[null,null,null,null,null,null,null,null,14,"B2"]
[null,null,null,null,null,null,null,null,15,"B2"]
[null,null,null,null,null,null,null,null,16,"B2"]
[null,null,null,null,null,null,null,null,"Button #"]

{"sheet":"Budget Check","index":1,"n_rows":37,"n_cols":4,"rows_kept":37,"cut":false,"hidden":false,"merged":[[5,1,5,3],[6,1,6,3],[7,1,7,3],[35,1,35,3],[23,1,23,3],[25,1,25,3],[26,1,26,3],[10,1,10,3],[11,1,11,2],[12,1,12,2],[14,1,14,3],[8,1,8,3],[9,1,9,3],[13,1,13,3],[0,1,0,3],[1,1,1,3],[2,1,2,3],[3,1,3,3],[4,1,4,3]]}
[null,"Virginia Department of Education"]
[null,"Office of ESEA Programs"]
[null,"P. O. Box 2120"]
[null,"Richmond, Virginia 23218-2120"]
[]
[null,"Title III, Part A, Language Instruction for English Learners and Immigrant Students"]
[]
[null,{"$f":"'Main Page'!G9","v":"2024-2025"}]
[null,"Autocalculated Budget Check"]
[null,"Note:  Only budget errors will display in column D.  If column D is blank after the Budget and Transferability tabs have been updated the budgets are balanced."]
[]
[null,"School Division:",null,{"$f":"'Main Page'!F13","v":0}]
[null,"Division Number:",null,{"$f":"'Main Page'!F14","v":" "}]
[]
[null,"Budget Tab"]
[null,1000,"Total Personnel Services",{"$f":"IF(Budget!N12=\"Yes\",\"\",\"Budget summary does not match the detailed budget breakdown\")","v":""}]
[null,2000,"Total Employee Benefits",{"$f":"IF(Budget!N16=\"Yes\",\"\",\"Budget summary does not match the detailed budget breakdown\")","v":""}]
[null,3000,"Total Purchased/Contracted Services",{"$f":"IF(Budget!N19=\"Yes\",\"\",\"Budget summary does not match the detailed budget breakdown\")","v":""}]
[null,4000,"Total Internal Services",{"$f":"IF(Budget!N22=\"Yes\",\"\",\"Budget summary does not match the detailed budget breakdown\")","v":""}]
[null,5000,"Total Other Charges",{"$f":"IF(Budget!N26=\"Yes\",\"\",\"Budget summary does not match the detailed budget breakdown\")","v":""}]
[null,6000,"Total Materials & Supplies",{"$f":"IF(Budget!N30=\"Yes\",\"\",\"Budget summary does not match the detailed budget breakdown\")","v":""}]
[null,8000,"Total Capital Outlay",{"$f":"IF(Budget!N32=\"Yes\",\"\",\"Budget summary does not match the detailed budget breakdown\")","v":""}]
[null,null,"Does the Budget Summary Match the Total Allocation?",{"$f":"IF(Budget!H35=\"Yes\", \"\",\"Budget summary does not match the total allocation\")","v":""}]
[null,"Detailed Budget Breakdown"]
[null,null,"Does the Detailed Budget Breakdown Match the Total Allocation?",{"$f":"IF(Budget!I45=\"Yes\", \"\",\"Detailed budget breakdown does not match the total allocation\")","v":""}]
[]
[null,"Transferability Tab"]
[null,1000,"Total Personnel Services",{"$f":"IF(Transferability!O14=\"Yes\",\"\",\"Transferability budget summary does not match the detailed budget breakdown\")","v":""}]
[null,2000,"Total Employee Benefits",{"$f":"IF(Transferability!O18=\"Yes\",\"\",\"Transferability budget summary does not match the detailed budget breakdown\")","v":""}]
[null,3000,"Total Purchased/Contracted Services",{"$f":"IF(Transferability!O21=\"Yes\",\"\",\"Transferability budget summary does not match the detailed budget breakdown\")","v":""}]
[null,4000,"Total Internal Services",{"$f":"IF(Transferability!O24=\"Yes\",\"\",\"Transferability budget summary does not match the detailed budget breakdown\")","v":""}]
[null,5000,"Total Other Charges",{"$f":"IF(Transferability!O28=\"Yes\",\"\",\"Transferability budget summary does not match the detailed budget breakdown\")","v":""}]
[null,6000,"Total Materials & Supplies",{"$f":"IF(Transferability!O32=\"Yes\",\"\",\"Transferability budget summary does not match the detailed budget breakdown\")","v":""}]
[null,8000,"Total Capital Outlay",{"$f":"IF(Transferability!O34=\"Yes\",\"\",\"Transferability budget summary does not match the detailed budget breakdown\")","v":""}]
[null,null,"Does the Transferability Budget Summary Match the Amount Transferred into Program?",{"$f":"IF(Transferability!H38=\"Yes\", \"\",\"Transferability budget summary does not match the amount transferred into program\")","v":""}]
[null,"Detailed Budget Breakdown"]
[null,null,"Does the Transferability Detailed Budget Breakdown Match the Transferability Allocation?",{"$f":"IF(Transferability!J44=\"Yes\", \"\",\"Transferability detailed budget breakdown does not match the transferability allocation\")","v":""}]

{"sheet":"Narrative","index":2,"n_rows":108,"n_cols":15,"rows_kept":108,"cut":false,"hidden":false,"merged":[[103,8,103,16],[104,2,104,3],[104,8,105,16],[105,2,105,3],[106,1,106,16],[107,1,107,16],[97,8,97,16],[98,2,98,3],[98,8,99,16],[99,2,99,3],[100,8,100,16],[101,2,101,3],[101,8,102,16],[102,2,102,3],[91,8,91,16],[92,2,92,3],[92,8,93,16],[93,2,93,3],[94,8,94,16],[95,2,95,3],[95,8,96,16],[96,2,96,3],[85,8,85,16],[86,2,86,3],[86,8,87,16],[87,2,87,3],[88,8,88,16],[89,2,89,3],[89,8,90,16],[90,2,90,3],[67,1,67,16],[68,10,68,16],[69,1,69,16],[70,1,70,16],[71,2,71,3],[71,7,105,7],[71,8,72,16],[72,2,72,3],[73,8,73,16],[79,8,79,16],[80,2,80,3],[80,8,81,16],[81,2,81,3],[82,8,82,16],[83,2,83,3],[83,8,84,16],[84,2,84,3],[74,2,74,3],[74,8,75,16],[75,2,75,3],[76,8,76,16],[77,2,77,3],[77,8,78,16],[78,2,78,3],[63,1,63,16],[64,1,64,5],[64,6,65,6],[64,7,64,12],[64,13,64,16],[65,1,65,5],[65,7,65,12],[65,13,65,16],[66,1,66,16],[57,1,57,16],[58,1,58,16],[59,1,59,16],[60,1,60,16],[61,1,61,5],[61,6,62,6],[61,7,61,12],[61,13,61,16],[62,1,62,5],[62,7,62,12],[62,13,62,16],[54,5,54,13],[54,14,54,16],[55,5,55,13],[55,14,55,16],[56,5,56,13],[56,14,56,16],[50,14,50,16],[51,1,51,2],[51,3,51,4],[51,5,51,13],[51,14,51,16],[52,5,52,9],[52,11,52,13],[52,14,53,16],[53,5,53,9],[53,11,53,13],[47,1,47,16],[48,1,48,6],[48,7,48,9],[48,10,48,16],[49,1,49,2],[49,3,49,4],[49,5,50,13],[49,14,49,16],[50,1,50,2],[50,3,50,4],[41,1,41,16],[42,1,42,16],[43,1,43,16],[44,1,44,16],[45,10,45,16],[46,1,46,16],[33,2,33,4],[35,1,35,6],[35,8,35,15],[37,1,37,6],[37,8,37,15],[39,1,39,6],[39,8,39,15],[25,1,25,16],[27,1,27,16],[28,1,28,16],[29,1,29,16],[30,1,30,16],[32,1,32,16],[20,1,21,7],[20,8,20,16],[21,8,21,16],[22,1,22,16],[23,1,23,4],[23,5,23,6],[23,7,23,9],[23,10,23,11],[23,12,23,14],[23,15,23,16],[18,1,18,7],[18,8,18,9],[18,10,18,16],[19,1,19,7],[19,8,19,9],[19,10,19,12],[19,14,19,16],[13,3,13,12],[14,3,14,12],[15,1,15,16],[16,1,16,16],[17,1,17,7],[17,8,17,9],[17,10,17,16],[10,3,10,12],[11,1,11,16],[12,3,12,12],[4,3,4,12],[5,1,5,13],[5,15,5,16],[6,3,6,12],[7,3,7,12],[7,14,7,15],[0,1,0,12],[0,13,0,16],[1,3,1,12],[1,14,1,15],[2,3,2,12],[3,3,3,12],[3,14,3,15],[8,1,8,12],[9,3,9,12],[9,15,9,16]]}
[null,null,null,null,null,null,null,null,null,null,null,null,null,"Place an \"X\" by the applicable response."]
[null,null,null,"Virginia Department of Education",null,null,null,null,null,null,null,null,null,null," Original "]
[null,null,null,"Office of ESEA Programs"]
[null,null,null,"P. O. Box 2120",null,null,null,null,null,null,null,null,null,null,"Revision :   "]
[null,null,null,"Richmond, Virginia 23218-2120",null,null,null,null,null,null,null,null,null,null,"Revision #"]
[null,null,null,null,null,null,null,null,null,null,null,null,null,null,"Date:"]
[null,null,null,"A.  COVER PAGE",null,null,null,null,null,null,null,null,null,null,"Explain"]
[null,null,null,{"$f":"'Main Page'!B6","v":"Title III, Part A, Language Instruction for English Learners and Immigrant Students "},null,null,null,null,null,null,null,null,null,null,"Amendment:"]
[null,null,null,null,null,null,null,null,null,null,null,null,null,null,"Amendment # "]
[null,null,null,{"$f":"'Main Page'!$G$9","v":"2024-2025"},null,null,null,null,null,null,null,null,null,null,"Date:       "]
[null,null,null,"Individual Program Application",null,null,null,null,null,null,null,null,null,null,"Explain"]
[]
[null,null,null,{"$f":"\"Due by \" & TEXT('Main Page'!G8,\"mmmm dd, yyyy\")","v":"Due by July 01, 2024"}]
[null,null,null,"Elementary and Secondary Education Act of 1965 (ESEA), as amended by"]
[null,null,null,"the Every Student Succeeds Act of 2015 (ESSA), P.L. 114-95"]
[]
[null,"To be Completed by School Division"]
[null,"Applicant  (Legal Name of Agency):",null,null,null,null,null,null,"Division Number:",null,"Title III, Part A Coordinator:"]
[null,{"$f":"'Main Page'!$F$13","v":0},null,null,null,null,null,null,{"$f":"'Main Page'!$F$14","v":" "}]
[null,"Mailing Address (Street, City or Town, Zip Code)",null,null,null,null,null,null,"Phone:",null,null,null,null,"Ext:"]
[null,null,null,null,null,null,null,null,"Email:"]
[]
[]
[null,{"$f":"'Main Page'!$G$9 & \" Title III, Part A Allocation:\"","v":"2024-2025 Title III, Part A Allocation:"},null,null,null,{"$f":"K24+P24","v":0},null,"EL Award Amount:",null,null,null,null,"I/Y Award Amount:"]
[]
[null,"Divisions that receive an Immigrant Children and Youth (IY) award must complete the “IY” tab after allocations are released."]
[]
[null,"LOCAL EDUCATIONAL AGENCY CERTIFICATION"]
[null,"Use of Funds:  The applicant designated above applies for an allocation of federal assistance as appropriated under ESEA.  Funds are available to support local education reform efforts that are consistent with statewide education reform efforts to: 1) provide funding to implement promising education reform programs and school improvement programs based on evidence-based research;  2) provide a continuing source of innovative and educational improvement;  3) meet the educational needs of all students; and 4) develop and implement education programs to improve student achievement and teacher performance. \n\nSpecific uses of funds for this application are found in the \"Guidelines, Instructions, and Assurances\" document."]
[]
[null,"Assurances:  The local educational agency assures that the Title III, Part A, program will be administered and implemented in compliance with all applicable statutes, regulations, policies, and program plans.  Additionally, the local educational agency agrees by signing below to implement the general and program specific assurances located in the application.  The assurances and signed cover page are to be retained at the division level.  "]
[]
[null,"Certification:  We hereby certify that, to the best of our knowledge, the information contained in this application is correct.  The agency named above has authorized us as its representatives to file this application, and such action is recorded in the minutes of the School Board meeting held "]
[null,"on",null,null,null,"."]
[]
[]
[null,"Superintendent’s Signature",null,null,null,null,null,null,"Board Chairperson’s Signature"]
[]
[null,"Superintendent’s Name",null,null,null,null,null,null,"Board Chairperson’s Name"]
[]
[null,"Date",null,null,null,null,null,null,"Date"]
[]
[null,{"$f":"\"Application Submission, Approval, and LEA Expenditure of Funds: Applications for Federal Funds are due by \" & TEXT('Main Page'!G8,\"mmmm dd, yyyy\") & \".  Revisions and Amendments should be submitted in a timely manner.  \"","v":"Application Submission, Approval, and LEA Expenditure of Funds: Applications for Federal Funds are due by July 01, 2024.  Revisions and Amendments should be submitted in a timely manner.  "}]
[null,{"$f":"\"Please note, in order for the funds to be expendable by \" & TEXT('Main Page'!G8,\"mmmm dd, yyyy\") & \", the electronic application must be received at the Virginia Department of Education by \" & TEXT('Main Page'!G8,\"mmmm dd, yyyy\") & \", through the file submission process of the Online Management of Education Grant Awards (OMEGA) system. \"","v":"Please note, in order for the funds to be expendable by July 01, 2024, the electronic application must be received at the Virginia Department of Education by July 01, 2024, through the file submission process of the Online Management of Education Grant Awards (OMEGA) system. "}]
[null,"Page 1"]
[null,{"$f":"'Main Page'!$G$9","v":"2024-2025"},"School Division:",null,{"$f":"'Main Page'!$F$13","v":0},null,null,null,"Division Number:",{"$f":"'Main Page'!F14","v":" "},{"$f":"'Main Page'!$B$6","v":"Title III, Part A, Language Instruction for English Learners and Immigrant Students "}]
[null,"APPLICATION INFORMATION "]
[]
[null,"Does the allocation total match the total in cell F24?",null,null,null,null,null,{"$f":"IF(SUM(O52)=SUM(F24),\"Yes\",\"No - Please review your entries.\")","v":"Yes"}]
[null,{"$f":" YEAR('Main Page'!$G$8)-1 & \"-\" &  YEAR('Main Page'!$G$8)","v":"2023-2024"},null,{"$f":" YEAR('Main Page'!$G$8)-1 & \"-\" &  YEAR('Main Page'!$G$8)","v":"2023-2024"},null,"Eligible Program",null,null,null,null,null,null,null,null,{"$f":"'Main Page'!G9","v":"2024-2025"}]
[null,"Allocation",null,"Consolidated\nYes or No",null,null,null,null,null,null,null,null,null,null,"Allocation Total"]
[null,{"$f":"IF(ISBLANK('Main Page'!$F$13),\" \",VLOOKUP('Main Page'!$F$14,Prefills!D6:F144,3))","v":" "},null,null,null,"Title III, Part A, English Learners:  \n(Total  of: a + b; only a; or only b)",null,null,null,null,null,null,null,null,{"$f":"SUM(L53:N54)","v":0}]
[null,null,null,null,null,"a.  EL Subgrant",null,null,null,null,"Subtotal ",{"$f":"K24","v":0}]
[null,null,null,null,null,"b.  Immigrant Children and Youth  Subgrant",null,null,null,null,"Subtotal ",{"$f":"P24","v":0}]
[null,null,null,null,null,"Title II, Part A Transferability",null,null,null,null,null,null,null,null,{"$f":"N63","v":0}]
[null,null,null,null,null,"Title IV, Part A Transferability",null,null,null,null,null,null,null,null,{"$f":"N66","v":0}]
[null,null,null,null,null,"Total Allocation",null,null,null,null,null,null,null,null,{"$f":"SUM(O52+O55+O56)","v":0}]
[]
[null,"TRANSFERABILITY"]
[null,"Section 5103(b)(2) of the Every Student Succeeds Act allows LEAs to transfer funds between certain qualifying federal programs. If funds are transferred into or out of the Title II, Part A, program, PRIOR APPROVAL IS REQUIRED, and a separate Transferability approval form must be submitted. The transfer request form is available at "]
[null,"Transfer Request Form"]
[null,"Program from which funds will be transferred:",null,null,null,null,"TO","Program TO which funds will be transferred:",null,null,null,null,null,"Amount"]
[null,"Title II, Part A",null,null,null,null,null,"Title III, Part A, English Learners (EL Subgrant)"]
[]
[null,"Program from which funds will be transferred:",null,null,null,null,"TO","Program TO which funds will be transferred:",null,null,null,null,null,"Amount"]
[null,"Title IV, Part A",null,null,null,null,null,"Title III, Part A, English Learners (EL Subgrant)"]
[]
[null,"Page 2"]
[null,{"$f":"'Main Page'!$G$9","v":"2024-2025"},"School Division:",null,{"$f":"'Main Page'!$F$13","v":0},null,null,null,"Division Number:",{"$f":"'Main Page'!$F$14","v":" "},{"$f":"'Main Page'!$B$6","v":"Title III, Part A, Language Instruction for English Learners and Immigrant Students "}]
[null,"REVISIONS AND AMENDMENTS"]
[null,"Place an \"X\" in the first box indicating whether it is a revision or amendment. Enter the date of the revision or amendment.  Indicate the tab(s) that have been changed. Provide a concise description of changes (for example, \"Programmatic Changes--purchase of additional reading materials, object code 6000; Budget Changes--decreased travel budget in object code 5000 and increased materials to purchase additional reading materials in object code 6000\"). When completing an amendment, changes to the program overview may be reflected as additions at the end of the narrative.\n\nNOTE: Any changes to the program budget should first be reflected in an amended application, followed by a budget transfer within 7 business days of approval of the amended application. Budget transfers will not be accepted without an approved amended application reflecting budget changes."]
[null,"1.","Revision:",null,null,"Date:"]
[null,null,"Amendment:",null,null,"Date:"]
[]
[null,"2.","Revision:",null,null,"Date:"]
[null,null,"Amendment:",null,null,"Date:"]
[]
[null,"3.","Revision:",null,null,"Date:"]
[null,null,"Amendment:",null,null,"Date:"]
[]
[null,"4.","Revision:",null,null,"Date:"]
[null,null,"Amendment:",null,null,"Date:"]
[]
[null,"5.","Revision:",null,null,"Date:"]
[null,null,"Amendment:",null,null,"Date:"]
[]
[null,"6.","Revision:",null,null,"Date:"]
[null,null,"Amendment:",null,null,"Date:"]
[]
[null,"7.","Revision:",null,null,"Date:"]
[null,null,"Amendment:",null,null,"Date:"]
[]
[null,"8.","Revision:",null,null,"Date:"]
[null,null,"Amendment:",null,null,"Date:"]
[]
[null,"9.","Revision:",null,null,"Date:"]
[null,null,"Amendment:",null,null,"Date:"]
[]
[null,"10.","Revision:",null,null,"Date:"]
[null,null,"Amendment:",null,null,"Date:"]
[]
[null,"11.","Revision:",null,null,"Date:"]
[null,null,"Amendment:",null,null,"Date:"]
[]
[null,"12.","Revision:",null,null,"Date:"]
[null,null,"Amendment:",null,null,"Date:"]
[]
[null,"Page 3"]

{"sheet":"Budget","index":3,"n_rows":356,"n_cols":16,"rows_kept":356,"cut":false,"hidden":false,"merged":[[232,11,232,14],[233,1,233,10],[233,11,233,14],[230,1,230,10],[236,15,236,16],[237,15,237,16],[238,15,238,16],[239,15,239,16],[240,15,240,16],[241,15,241,16],[242,15,242,16],[243,15,243,16],[236,1,236,10],[236,11,236,14],[237,1,237,10],[237,11,237,14],[309,15,309,16],[232,15,232,16],[233,15,233,16],[234,15,234,16],[235,15,235,16],[272,1,272,16],[297,13,297,14],[298,1,298,8],[298,9,298,12],[298,13,298,14],[297,15,297,16],[298,15,298,16],[299,15,299,16],[300,15,300,16],[301,15,301,16],[302,15,302,16],[310,15,310,16],[353,15,353,16],[311,15,311,16],[269,1,269,16],[54,15,54,16],[55,15,55,16],[56,15,56,16],[57,15,57,16],[58,15,58,16],[59,15,59,16],[60,15,60,16],[61,15,61,16],[62,15,62,16],[63,15,63,16],[64,15,64,16],[65,15,65,16],[66,15,66,16],[67,15,67,16],[68,15,68,16],[69,15,69,16],[70,15,70,16],[71,15,71,16],[234,1,234,10],[234,11,234,14],[235,1,235,10],[235,11,235,14],[232,1,232,10],[72,15,72,16],[73,15,73,16],[74,15,74,16],[224,1,224,16],[231,15,231,16],[34,15,34,16],[34,13,34,14],[32,13,33,16],[33,10,34,12],[35,10,36,16],[50,1,50,16],[51,1,51,16],[90,1,90,16],[91,1,91,16],[137,1,137,16],[138,1,138,16],[181,1,181,16],[182,1,182,16],[227,1,227,16],[228,1,228,16],[230,11,230,14],[231,1,231,10],[231,11,231,14],[230,15,230,16],[229,1,229,10],[229,11,229,14],[225,1,225,16],[226,1,226,16],[52,15,52,16],[53,15,53,16],[75,15,75,16],[76,15,76,16],[77,15,77,16],[78,15,78,16],[79,15,79,16],[80,15,80,16],[81,15,81,16],[260,1,260,10],[260,11,260,14],[261,1,261,10],[261,11,261,14],[260,15,260,16],[261,15,261,16],[258,1,258,10],[258,11,258,14],[259,1,259,10],[259,11,259,14],[256,1,256,10],[256,11,256,14],[257,1,257,10],[257,11,257,14],[254,1,254,10],[254,11,254,14],[255,1,255,10],[255,11,255,14],[254,15,254,16],[255,15,255,16],[256,15,256,16],[257,15,257,16],[258,15,258,16],[259,15,259,16],[18,10,18,12],[17,10,17,12],[16,10,16,12],[15,10,15,12],[14,10,14,12],[13,10,13,12],[12,10,12,12],[11,10,11,12],[10,10,10,12],[9,10,9,12],[8,10,8,12],[32,10,32,12],[31,10,31,12],[30,10,30,12],[29,10,29,12],[28,10,28,12],[27,10,27,12],[26,10,26,12],[25,10,25,12],[24,10,24,12],[23,10,23,12],[22,10,22,12],[21,10,21,12],[20,10,20,12],[19,10,19,12],[31,13,31,16],[29,13,29,16],[25,13,25,16],[21,13,21,16],[18,13,18,16],[15,13,15,16],[11,13,11,16],[7,13,7,16],[8,13,10,16],[12,13,14,16],[16,13,17,16],[19,13,20,16],[22,13,24,16],[26,13,28,16],[30,13,30,16],[381,1,381,16],[382,1,382,16],[357,1,357,16],[358,1,358,16],[359,1,359,16],[360,1,360,16],[361,1,361,16],[362,1,362,16],[353,11,353,14],[354,1,354,16],[356,5,356,6],[356,13,356,15],[355,1,355,16],[351,1,351,8],[351,9,351,12],[351,13,351,14],[352,1,352,8],[347,15,347,16],[348,15,348,16],[349,15,349,16],[350,15,350,16],[351,15,351,16],[352,15,352,16],[383,2,383,16],[384,2,384,16],[385,1,385,16],[386,1,386,16],[375,2,375,16],[376,2,376,16],[377,1,377,16],[378,1,378,16],[379,2,379,16],[380,2,380,16],[369,2,369,16],[370,2,370,16],[371,1,371,16],[372,2,372,16],[373,1,373,16],[374,1,374,16],[363,1,363,16],[364,2,364,16],[365,1,365,16],[366,2,366,16],[367,1,367,16],[368,1,368,16],[341,13,341,14],[342,1,342,8],[342,9,342,12],[342,13,342,14],[352,9,352,12],[352,13,352,14],[349,1,349,8],[349,9,349,12],[349,13,349,14],[350,1,350,8],[350,9,350,12],[350,13,350,14],[347,1,347,8],[347,9,347,12],[347,13,347,14],[348,1,348,8],[348,9,348,12],[348,13,348,14],[341,15,341,16],[342,15,342,16],[343,15,343,16],[344,15,344,16],[345,15,345,16],[346,15,346,16],[339,1,339,8],[339,9,339,12],[339,13,339,14],[340,1,340,8],[340,9,340,12],[340,13,340,14],[337,1,337,8],[337,9,337,12],[337,13,337,14],[338,1,338,8],[338,9,338,12],[338,13,338,14],[345,1,345,8],[345,9,345,12],[345,13,345,14],[346,1,346,8],[346,9,346,12],[346,13,346,14],[343,1,343,8],[343,9,343,12],[343,13,343,14],[344,1,344,8],[344,9,344,12],[344,13,344,14],[341,1,341,8],[341,9,341,12],[335,1,335,8],[335,9,335,12],[335,13,335,14],[336,1,336,8],[336,9,336,12],[336,13,336,14],[335,15,335,16],[336,15,336,16],[337,15,337,16],[338,15,338,16],[339,15,339,16],[340,15,340,16],[333,1,333,8],[333,9,333,12],[333,13,333,14],[334,1,334,8],[334,9,334,12],[334,13,334,14],[334,15,334,16],[331,1,331,8],[331,9,331,12],[331,13,331,14],[332,1,332,8],[332,9,332,12],[332,13,332,14],[329,1,329,8],[329,9,329,12],[329,13,329,14],[330,1,330,8],[330,9,330,12],[330,13,330,14],[329,15,329,16],[330,15,330,16],[331,15,331,16],[332,15,332,16],[333,15,333,16],[320,9,320,12],[320,13,320,14],[318,1,318,16],[319,15,319,16],[320,15,320,16],[321,15,321,16],[322,15,322,16],[314,10,314,16],[313,1,313,16],[315,1,315,16],[327,1,327,8],[327,9,327,12],[327,13,327,14],[328,1,328,8],[328,9,328,12],[328,13,328,14],[325,1,325,8],[325,9,325,12],[325,13,325,14],[326,1,326,8],[326,9,326,12],[326,13,326,14],[323,1,323,8],[323,9,323,12],[323,13,323,14],[324,1,324,8],[324,9,324,12],[324,13,324,14],[309,13,309,14],[310,1,310,8],[310,9,310,12],[310,13,310,14],[303,15,303,16],[304,15,304,16],[305,15,305,16],[306,15,306,16],[307,15,307,16],[308,15,308,16],[323,15,323,16],[324,15,324,16],[325,15,325,16],[326,15,326,16],[327,15,327,16],[328,15,328,16],[307,1,307,8],[307,9,307,12],[307,13,307,14],[308,1,308,8],[308,9,308,12],[308,13,308,14],[321,1,321,8],[321,9,321,12],[321,13,321,14],[322,1,322,8],[322,9,322,12],[322,13,322,14],[319,1,319,8],[319,9,319,12],[319,13,319,14],[320,1,320,8],[301,1,301,8],[301,9,301,12],[301,13,301,14],[302,1,302,8],[302,9,302,12],[302,13,302,14],[299,1,299,8],[299,9,299,12],[299,13,299,14],[300,1,300,8],[300,9,300,12],[300,13,300,14],[297,1,297,8],[297,9,297,12],[316,1,316,16],[317,1,317,16],[312,1,312,16],[305,1,305,8],[305,9,305,12],[305,13,305,14],[306,1,306,8],[306,9,306,12],[306,13,306,14],[303,1,303,8],[303,9,303,12],[303,13,303,14],[304,1,304,8],[304,9,304,12],[304,13,304,14],[311,11,311,14],[309,1,309,8],[309,9,309,12],[289,15,289,16],[291,1,291,8],[291,9,291,12],[291,13,291,14],[292,1,292,8],[292,9,292,12],[292,13,292,14],[291,15,291,16],[292,15,292,16],[293,15,293,16],[294,15,294,16],[295,15,295,16],[296,15,296,16],[289,1,289,8],[289,9,289,12],[289,13,289,14],[290,1,290,8],[290,9,290,12],[290,13,290,14],[290,15,290,16],[295,1,295,8],[295,9,295,12],[295,13,295,14],[296,1,296,8],[296,9,296,12],[296,13,296,14],[293,1,293,8],[293,9,293,12],[293,13,293,14],[294,1,294,8],[294,9,294,12],[294,13,294,14],[287,1,287,8],[287,9,287,12],[287,13,287,14],[288,1,288,8],[288,9,288,12],[288,13,288,14],[285,1,285,8],[285,9,285,12],[285,13,285,14],[286,1,286,8],[286,9,286,12],[286,13,286,14],[285,15,285,16],[286,15,286,16],[287,15,287,16],[288,15,288,16],[279,15,279,16],[280,15,280,16],[281,15,281,16],[282,15,282,16],[283,15,283,16],[284,15,284,16],[276,9,276,12],[276,13,276,14],[283,1,283,8],[283,9,283,12],[283,13,283,14],[284,1,284,8],[284,9,284,12],[284,13,284,14],[281,1,281,8],[281,9,281,12],[281,13,281,14],[282,1,282,8],[282,9,282,12],[282,13,282,14],[279,1,279,8],[279,9,279,12],[279,13,279,14],[280,1,280,8],[280,9,280,12],[280,13,280,14],[274,1,274,8],[274,9,274,12],[274,13,274,14],[273,1,273,16],[274,15,274,16],[275,15,275,16],[276,15,276,16],[277,15,277,16],[278,15,278,16],[264,11,264,14],[267,10,267,16],[266,1,266,16],[268,1,268,16],[270,1,270,16],[271,1,271,16],[262,1,262,10],[262,11,262,14],[263,1,263,10],[263,11,263,14],[262,15,262,16],[263,15,263,16],[264,15,264,16],[277,1,277,8],[277,9,277,12],[277,13,277,14],[278,1,278,8],[278,9,278,12],[278,13,278,14],[275,1,275,8],[275,9,275,12],[275,13,275,14],[276,1,276,8],[253,1,253,10],[253,11,253,14],[250,1,250,10],[250,11,250,14],[251,1,251,10],[251,11,251,14],[248,1,248,10],[248,11,248,14],[249,1,249,10],[249,11,249,14],[248,15,248,16],[249,15,249,16],[250,15,250,16],[251,15,251,16],[252,15,252,16],[253,15,253,16],[247,1,247,10],[247,11,247,14],[252,1,252,10],[252,11,252,14],[244,1,244,10],[244,11,244,14],[245,1,245,10],[245,11,245,14],[242,1,242,10],[242,11,242,14],[243,1,243,10],[243,11,243,14],[247,15,247,16],[240,1,240,10],[240,11,240,14],[241,1,241,10],[241,11,241,14],[238,1,238,10],[238,11,238,14],[239,1,239,10],[239,11,239,14],[244,15,244,16],[245,15,245,16],[246,15,246,16],[246,1,246,10],[246,11,246,14],[219,11,219,14],[217,1,217,10],[217,11,217,14],[218,1,218,10],[218,11,218,14],[215,1,215,10],[215,11,215,14],[216,1,216,10],[216,11,216,14],[222,10,222,16],[221,1,221,16],[223,1,223,16],[220,1,220,16],[229,15,229,16],[215,15,215,16],[216,15,216,16],[217,15,217,16],[218,15,218,16],[219,15,219,16],[213,1,213,10],[213,11,213,14],[214,1,214,10],[214,11,214,14],[211,1,211,10],[211,11,211,14],[212,1,212,10],[212,11,212,14],[209,1,209,10],[209,11,209,14],[210,1,210,10],[210,11,210,14],[209,15,209,16],[210,15,210,16],[211,15,211,16],[212,15,212,16],[213,15,213,16],[214,15,214,16],[207,1,207,10],[207,11,207,14],[208,1,208,10],[208,11,208,14],[205,1,205,10],[205,11,205,14],[206,1,206,10],[206,11,206,14],[203,1,203,10],[203,11,203,14],[204,1,204,10],[204,11,204,14],[203,15,203,16],[204,15,204,16],[205,15,205,16],[206,15,206,16],[207,15,207,16],[208,15,208,16],[201,1,201,10],[201,11,201,14],[202,1,202,10],[202,11,202,14],[199,1,199,10],[199,11,199,14],[200,1,200,10],[200,11,200,14],[197,1,197,10],[197,11,197,14],[198,1,198,10],[198,11,198,14],[197,15,197,16],[198,15,198,16],[199,15,199,16],[200,15,200,16],[201,15,201,16],[202,15,202,16],[195,1,195,10],[195,11,195,14],[196,1,196,10],[196,11,196,14],[193,1,193,10],[193,11,193,14],[194,1,194,10],[194,11,194,14],[191,1,191,10],[191,11,191,14],[192,1,192,10],[192,11,192,14],[191,15,191,16],[192,15,192,16],[193,15,193,16],[194,15,194,16],[195,15,195,16],[196,15,196,16],[189,1,189,10],[189,11,189,14],[190,1,190,10],[190,11,190,14],[187,1,187,10],[187,11,187,14],[188,1,188,10],[188,11,188,14],[185,1,185,10],[185,11,185,14],[186,1,186,10],[186,11,186,14],[185,15,185,16],[186,15,186,16],[187,15,187,16],[188,15,188,16],[189,15,189,16],[190,15,190,16],[183,1,183,10],[183,11,183,14],[184,1,184,10],[184,11,184,14],[172,1,172,10],[172,11,172,14],[173,11,173,14],[176,10,176,16],[175,1,175,16],[177,1,177,16],[179,1,179,16],[180,1,180,16],[174,1,174,16],[183,15,183,16],[184,15,184,16],[172,15,172,16],[173,15,173,16],[178,1,178,16],[170,1,170,10],[170,11,170,14],[171,1,171,10],[171,11,171,14],[168,1,168,10],[168,11,168,14],[169,1,169,10],[169,11,169,14],[166,1,166,10],[166,11,166,14],[167,1,167,10],[167,11,167,14],[166,15,166,16],[167,15,167,16],[168,15,168,16],[169,15,169,16],[170,15,170,16],[171,15,171,16],[164,1,164,10],[164,11,164,14],[165,1,165,10],[165,11,165,14],[162,1,162,10],[162,11,162,14],[163,1,163,10],[163,11,163,14],[160,1,160,10],[160,11,160,14],[161,1,161,10],[161,11,161,14],[160,15,160,16],[161,15,161,16],[162,15,162,16],[163,15,163,16],[164,15,164,16],[165,15,165,16],[158,1,158,10],[158,11,158,14],[159,1,159,10],[159,11,159,14],[156,1,156,10],[156,11,156,14],[157,1,157,10],[157,11,157,14],[154,1,154,10],[154,11,154,14],[155,1,155,10],[155,11,155,14],[154,15,154,16],[155,15,155,16],[156,15,156,16],[157,15,157,16],[158,15,158,16],[159,15,159,16],[152,1,152,10],[152,11,152,14],[153,1,153,10],[153,11,153,14],[150,1,150,10],[150,11,150,14],[151,1,151,10],[151,11,151,14],[148,1,148,10],[148,11,148,14],[149,1,149,10],[149,11,149,14],[148,15,148,16],[149,15,149,16],[150,15,150,16],[151,15,151,16],[152,15,152,16],[153,15,153,16],[146,1,146,10],[146,11,146,14],[147,1,147,10],[147,11,147,14],[144,1,144,10],[144,11,144,14],[145,1,145,10],[145,11,145,14],[142,1,142,10],[142,11,142,14],[143,1,143,10],[143,11,143,14],[142,15,142,16],[143,15,143,16],[144,15,144,16],[145,15,145,16],[146,15,146,16],[147,15,147,16],[140,1,140,10],[140,11,140,14],[141,1,141,10],[141,11,141,14],[139,1,139,10],[139,11,139,14],[129,11,129,14],[132,10,132,16],[131,1,131,16],[133,1,133,16],[135,1,135,16],[136,1,136,16],[130,1,130,16],[129,15,129,16],[134,1,134,16],[141,15,141,16],[127,1,127,10],[127,11,127,14],[128,1,128,10],[128,11,128,14],[139,15,139,16],[140,15,140,16],[125,1,125,10],[125,11,125,14],[126,1,126,10],[126,11,126,14],[123,1,123,10],[123,11,123,14],[124,1,124,10],[124,11,124,14],[123,15,123,16],[124,15,124,16],[125,15,125,16],[126,15,126,16],[127,15,127,16],[128,15,128,16],[121,1,121,10],[121,11,121,14],[122,1,122,10],[122,11,122,14],[119,1,119,10],[119,11,119,14],[120,1,120,10],[120,11,120,14],[117,1,117,10],[117,11,117,14],[118,1,118,10],[118,11,118,14],[117,15,117,16],[118,15,118,16],[119,15,119,16],[120,15,120,16],[121,15,121,16],[122,15,122,16],[115,1,115,10],[115,11,115,14],[116,1,116,10],[116,11,116,14],[113,1,113,10],[113,11,113,14],[114,1,114,10],[114,11,114,14],[111,1,111,10],[111,11,111,14],[112,1,112,10],[112,11,112,14],[111,15,111,16],[112,15,112,16],[113,15,113,16],[114,15,114,16],[115,15,115,16],[116,15,116,16],[109,1,109,10],[109,11,109,14],[110,1,110,10],[110,11,110,14],[107,1,107,10],[107,11,107,14],[108,1,108,10],[108,11,108,14],[105,1,105,10],[105,11,105,14],[106,1,106,10],[106,11,106,14],[105,15,105,16],[106,15,106,16],[107,15,107,16],[108,15,108,16],[109,15,109,16],[110,15,110,16],[103,1,103,10],[103,11,103,14],[104,1,104,10],[104,11,104,14],[101,1,101,10],[101,11,101,14],[102,1,102,10],[102,11,102,14],[99,1,99,10],[99,11,99,14],[100,1,100,10],[100,11,100,14],[99,15,99,16],[100,15,100,16],[101,15,101,16],[102,15,102,16],[103,15,103,16],[104,15,104,16],[97,1,97,10],[97,11,97,14],[98,1,98,10],[98,11,98,14],[95,1,95,10],[95,11,95,14],[96,1,96,10],[96,11,96,14],[93,1,93,10],[93,11,93,14],[94,1,94,10],[94,11,94,14],[94,15,94,16],[95,15,95,16],[96,15,96,16],[97,15,97,16],[98,15,98,16],[92,1,92,10],[92,11,92,14],[82,9,82,12],[82,13,82,14],[82,15,82,16],[87,1,87,16],[92,15,92,16],[93,15,93,16],[80,1,80,8],[80,9,80,12],[80,13,80,14],[81,1,81,8],[81,9,81,12],[81,13,81,14],[85,10,85,16],[84,1,84,16],[86,1,86,16],[88,1,88,16],[89,1,89,16],[83,1,83,16],[78,1,78,8],[78,9,78,12],[78,13,78,14],[79,1,79,8],[79,9,79,12],[79,13,79,14],[76,1,76,8],[76,9,76,12],[76,13,76,14],[77,1,77,8],[77,9,77,12],[77,13,77,14],[74,1,74,8],[74,9,74,12],[74,13,74,14],[75,1,75,8],[75,9,75,12],[75,13,75,14],[72,1,72,8],[72,9,72,12],[72,13,72,14],[73,1,73,8],[73,9,73,12],[73,13,73,14],[70,1,70,8],[70,9,70,12],[70,13,70,14],[71,1,71,8],[71,9,71,12],[71,13,71,14],[68,1,68,8],[68,9,68,12],[68,13,68,14],[69,1,69,8],[69,9,69,12],[69,13,69,14],[66,1,66,8],[66,9,66,12],[66,13,66,14],[67,1,67,8],[67,9,67,12],[67,13,67,14],[64,1,64,8],[64,9,64,12],[64,13,64,14],[65,1,65,8],[65,9,65,12],[65,13,65,14],[62,1,62,8],[62,9,62,12],[62,13,62,14],[63,1,63,8],[63,9,63,12],[63,13,63,14],[60,1,60,8],[60,9,60,12],[60,13,60,14],[61,1,61,8],[61,9,61,12],[61,13,61,14],[58,1,58,8],[58,9,58,12],[58,13,58,14],[59,1,59,8],[59,9,59,12],[59,13,59,14],[56,1,56,8],[56,9,56,12],[56,13,56,14],[57,1,57,8],[57,9,57,12],[57,13,57,14],[54,1,54,8],[54,9,54,12],[54,13,54,14],[55,1,55,8],[55,9,55,12],[55,13,55,14],[52,1,52,8],[52,9,52,12],[52,13,52,14],[53,1,53,8],[53,9,53,12],[53,13,53,14],[44,1,44,7],[44,8,44,10],[36,2,36,6],[36,7,36,9],[41,10,41,16],[40,1,40,16],[38,2,38,16],[42,1,42,16],[46,1,46,16],[48,1,48,16],[49,1,49,16],[43,1,43,16],[44,11,44,16],[45,1,45,16],[47,1,47,16],[37,1,37,16],[39,1,39,16],[34,2,34,6],[34,7,34,9],[35,2,35,6],[35,7,35,9],[32,2,32,6],[32,7,32,9]],"merged_total":1068,"flags":["merged_cut"]}
[null,{"$f":"'Main Page'!$G$9","v":"2024-2025"},"School Division:",null,{"$f":"'Main Page'!$F$13","v":0},null,null,null,"Division Number:",{"$f":"'Main Page'!$F$14","v":" "},{"$f":"'Main Page'!$B$6","v":"Title III, Part A, Language Instruction for English Learners and Immigrant Students "}]
[null,"B.  BUDGET SUMMARY"]
[]
[null,"Title III funds may be used to provide supplemental services that improve the English language proficiency and academic achievement of English Learners (ELs), including the provision of language instruction educational programs (LIEPs) and activities that increase the knowledge and skills of teachers who serve ELs. All services provided to ELs and IY students using Title III funds must supplement, and not supplant, the services that must be provided to ELs under Title VI of the Civil Rights Act of 1964 (Title VI), the Equal Educational Opportunities Act of 1974 (EEOA), and other federal requirements, as well as those under State or local laws."]
[]
[null,null,null,null,null,null,null,"Title III, Part A\nBudget for 2024-2025\nAward:  S365A240046\nProject Codes:  APE60509 (IY) & APE60512 (EL)"]
[null,null,null,null,null,null,null,"Allocation:",null,null,{"$f":"Narrative!$O$52","v":0}]
[null,"OBJECT CODE","EXPENDITURE",null,null,null,null,"EL SUBGRANT",null,null,"IMMIGRANT CHILDREN & YOUTH\n(IY) SUBGRANT",null,null,"DOES BUDGET SUMMARY MATCH DETAIL BUDGET?"]
[null,"1000 -\n Personnel Services","Administrative"]
[null,null,"Non-Administrative"]
[null,null,"Private School Set-Aside"]
[null,null,"Total Personal Services",null,null,null,null,{"$f":"SUM(H9:J11)","v":0},null,null,{"$f":"SUM(K9:M11)","v":0},null,null,{"$f":"IF(SUM(P83)=SUM(H12,K12),\"Yes\", \"No - Please review your entries.\")","v":"Yes"}]
[null,"2000 -\nEmployee Benefits","Administrative"]
[null,null,"Non-Administrative"]
[null,null,"Private School Set-Aside"]
[null,null,"Total Employee Benefits",null,null,null,null,{"$f":"SUM(H13:J15)","v":0},null,null,{"$f":"SUM(K13:M15)","v":0},null,null,{"$f":"IF(SUM(P130)=SUM(H16,K16),\"Yes\", \"No - Please review your entries.\")","v":"Yes"}]
[null,"3000 - \nPurchased/\nContracted Services","Contracted Services"]
[null,null,"Private School Set-Aside"]
[null,null,"Total Purchased/Contracted Services",null,null,null,null,{"$f":"SUM(H17:J18)","v":0},null,null,{"$f":"SUM(K17:M18)","v":0},null,null,{"$f":"IF(SUM(P174)=SUM(H19,K19),\"Yes\", \"No - Please review your entries.\")","v":"Yes"}]
[null,"4000 - \nInternal Services","Internal Services"]
[null,null,"Private School Set-Aside"]
[null,null,"Total Internal Services",null,null,null,null,{"$f":"SUM(H20:J21)","v":0},null,null,{"$f":"SUM(K20:M21)","v":0},null,null,{"$f":"IF(SUM(P220)=SUM(H22,K22),\"Yes\", \"No - Please review your entries.\")","v":"Yes"}]
[null,"5000 - \nOther  \nCharges","Indirect Cost"]
[null,null,"Non-Administrative"]
[null,null,"Private School Set-Aside"]
[null,null,"Total Other Charges",null,null,null,null,{"$f":"SUM(H23:J25)","v":0},null,null,{"$f":"SUM(K23:M25)","v":0},null,null,{"$f":"IF(SUM(P265)=SUM(H26,K26),\"Yes\", \"No - Please review your entries.\")","v":"Yes"}]
[null,"6000 - \nMaterials\n and Supplies","Administrative"]
[null,null,"Materials"]
[null,null,"Private School Set-Aside"]
[null,null,"Total Materials and Supplies",null,null,null,null,{"$f":"SUM(H27:J29)","v":0},null,null,{"$f":"SUM(K27:M29)","v":0},null,null,{"$f":"IF(SUM(P312)=SUM(H30,K30),\"Yes\", \"No - Please review your entries.\")","v":"Yes"}]
[null,"8000 - \nCapital\nOutlay","Non-Administrative"]
[null,null,"Total Capital Outlay",null,null,null,null,{"$f":"SUM(H31:J31)","v":0},null,null,{"$f":"SUM(K31:M31)","v":0},null,null,{"$f":"IF(SUM(P354)=SUM(H32,K32),\"Yes\", \"No - Please review your B38entries.\")","v":"Yes"}]
[null,null,"TOTAL SUBGRANT BUDGET",null,null,null,null,{"$f":"H12+H16+H19+H22+H26+H30+H32","v":0},null,null,{"$f":"K12+K16+K19+K22+K26+K30+K32","v":0}]
[null,null,"TOTAL ALLOCATION",null,null,null,null,{"$f":"H33+K33","v":0}]
[null,null,"DOES THE BUDGET SUMMARY MATCH THE TOTAL ALLOCATION?",null,null,null,null,{"$f":"IF(SUM(H34)=SUM(K7),\"Yes\", \"No - Please review your entries.\")","v":"Yes"},null,null,null,null,null,"Difference",null,{"$f":"H34-K7","v":0}]
[null,null,"TOTAL SET-ASIDE",null,null,null,null,{"$f":"H9+H13+H23+H27","v":0}]
[null,null,"TOTAL PRIVATE SCHOOL SET-ASIDE",null,null,null,null,{"$f":"H11+H15+H18+H21+H25+H29","v":0}]
[]
[null,null,"NOTES: (1) Object codes 7000 and 9000 are not used in application budgets or in requests for reimbursements for this federal grant.\n                (2) Administrative costs are limited to 2 percent or less of the EL subgrant award including indirect costs.\n                (3) Indirect costs claims are subject to the availability of funds and statutory or administrative restrictions. Title III, Part A and Title IV, Part A, place a \n                       statutory limitation or cap on administrative costs. Because the cap applies to the combined claims for indirect costs and direct administrative costs, \n                      divisions may not be able to claim the entirety of their indirect costs. The amount unrecovered may not be shifted to another federal award.\n                (4) Expenses for parental involvement programs are to be incorporated into the appropriate object code(s) based on the category of the related charges."]
[]
[null,"Page 4"]
[null,{"$f":"'Main Page'!$G$9","v":"2024-2025"},"School Division:",null,{"$f":"'Main Page'!$F$13","v":0},null,null,null,"Division Number:",{"$f":"'Main Page'!$F$14","v":" "},{"$f":"'Main Page'!$B$6","v":"Title III, Part A, Language Instruction for English Learners and Immigrant Students "}]
[null,"C.  DETAILED BUDGET BREAKDOWN"]
[null,"Prepare a detailed breakdown of the budget categories for Object Codes 1000-6000 and 8000.  Choose the appropriate category for each expense in the dropdown list under \"Funding Source.\""]
[null,"Does the Detailed Budget Breakdown Match the Total Allocation?",null,null,null,null,null,null,{"$f":"IF(SUM(H34)=SUM(P83, P130, P174, P220, P265, P312, P354),\"Yes\",\"No - Please review your entries.\")","v":"Yes"}]
[]
[null,"DETAILED BUDGET DESCRIPTION OF OBJECT CODE 1000"]
[null,"Provide a description of the positions supported with funds from this program. Indicate if any positions are newly funded under this program.  Explain the supplementary nature of any new positions. (Required if staff positions are to be funded by federal funds)."]
[]
[]
[null,"Please provide a detailed description of Private School activities (If no private school set-aside is present, please enter N/A). "]
[]
[null,"Item Description",null,null,null,null,null,null,null,"Category",null,null,null,"FTEs",null,"Total Cost"]
[]
[]
[]
[]
[]
[]
[]
[]
[]
[]
[]
[]
[]
[]
[]
[]
[]
[]
[]
[]
[]
[]
[]
[]
[]
[]
[]
[]
[]
[null,null,null,null,null,null,null,null,null,"Total for Object Code:",null,null,null,{"$f":"SUM(N54:O82)","v":0},null,{"$f":"SUM(P54:Q82)","v":0}]
[]
[null,"Page 5"]
[null,{"$f":"'Main Page'!$G$9","v":"2024-2025"},"School Division:",null,{"$f":"'Main Page'!$F$13","v":0},null,null,null,"Division Number:",{"$f":"'Main Page'!$F$14","v":" "},{"$f":"'Main Page'!$B$6","v":"Title III, Part A, Language Instruction for English Learners and Immigrant Students "}]
[null,"DETAILED BUDGET DESCRIPTION OF OBJECT CODE 2000"]
[null,"Indicate the fixed charge categories (such as FICA, health, etc.) and specify the amount of each."]
[]
[]
[null,"Please provide a detailed description of Private School activities (If no private school set-aside is present, please enter N/A). "]
[]
[null,"Item Description",null,null,null,null,null,null,null,null,null,"Category",null,null,null,"Total Cost"]
[]
[]
[]
[]
[]
[]
[]
[]
[]
[]
[]
[]
[]
[]
[]
[]
[]
[]
[]
[]
[]
[]
[]
[]
[]
[]
[]
[]
[]
[]
[]
[]
[]
[]
[]
[]
[null,null,null,null,null,null,null,null,null,null,null,"Total for Object Code:",null,null,null,{"$f":"SUM(P94:Q129)","v":0}]
[]
[null,"Page 6"]
[null,{"$f":"'Main Page'!$G$9","v":"2024-2025"},"School Division:",null,{"$f":"'Main Page'!$F$13","v":0},null,null,null,"Division Number:",{"$f":"'Main Page'!$F$14","v":" "},{"$f":"'Main Page'!$B$6","v":"Title III, Part A, Language Instruction for English Learners and Immigrant Students "}]
[null,"DETAILED BUDGET DESCRIPTION OF OBJECT CODE 3000"]
[null,"Please indicate how these funds will support any services and activities that are described in this application.  If program funds are expended for professional development, justify such expenditures by demonstrating a relationship between the proposed expenditure for professional development and the program services and activities described in the application. "]
[]
[]
[null,"Please provide a detailed description of Private School activities (If no private school set-aside is present, please enter N/A). "]
[]
[null,"Item Description",null,null,null,null,null,null,null,null,null,"Category",null,null,null,"Total Cost"]
[]
[]
[]
[]
[]
[]
[]
[]
[]
[]
[]
[]
[]
[]
[]
[]
[]
[]
[]
[]
[]
[]
[]
[]
[]
[]
[]
[]
[]
[]
[]
[]
[]
[null,null,null,null,null,null,null,null,null,null,null,"Total for Object Code:",null,null,null,{"$f":"SUM(P141:Q173)","v":0}]
[]
[null,"Page 7"]
[null,{"$f":"'Main Page'!$G$9","v":"2024-2025"},"School Division:",null,{"$f":"'Main Page'!$F$13","v":0},null,null,null,"Division Number:",{"$f":"'Main Page'!$F$14","v":" "},{"$f":"'Main Page'!$B$6","v":"Title III, Part A, Language Instruction for English Learners and Immigrant Students "}]
[null,"DETAILED BUDGET DESCRIPTION OF OBJECT CODE 4000"]
[null,"If program funds are expended for internal services, describe these services below."]
[]
[]
[null,"Please provide a detailed description of Private School activities (If no private school set-aside is present, please enter N/A). "]
[]
[null,"Item Description",null,null,null,null,null,null,null,null,null,"Category",null,null,null,"Total Cost"]
[]
[]
[]
[]
[]
[]
[]
[]
[]
[]
[]
[]
[]
[]
[]
[]
[]
[]
[]
[]
[]
[]
[]
[]
[]
[]
[]
[]
[]
[]
[]
[]
[]
[]
[]
[null,null,null,null,null,null,null,null,null,null,null,"Total for Object Code:",null,null,null,{"$f":"SUM(P185:Q219)","v":0}]
[]
[null,"Page 8"]
[null,{"$f":"'Main Page'!$G$9","v":"2024-2025"},"School Division:",null,{"$f":"'Main Page'!$F$13","v":0},null,null,null,"Division Number:",{"$f":"'Main Page'!$F$14","v":" "},{"$f":"'Main Page'!$B$6","v":"Title III, Part A, Language Instruction for English Learners and Immigrant Students "}]
[null,"DETAILED BUDGET DESCRIPTION OF OBJECT CODE 5000"]
[null,"Provide a description for expenses related to object code 5000.  Include expenditures that support the use of programs. Includes expenditures that support the program, staff/administrative/consultant travel, office phone charges, training, leases/rental, indirect cost, and other."]
[]
[]
[null,"Please provide a detailed description of Private School activities (If no private school set-aside is present, please enter N/A). "]
[]
[null,"Item Description",null,null,null,null,null,null,null,null,null,"Category",null,null,null,"Total Cost"]
[]
[]
[]
[]
[]
[]
[]
[]
[]
[]
[]
[]
[]
[]
[]
[]
[]
[]
[]
[]
[]
[]
[]
[]
[]
[]
[]
[]
[]
[]
[]
[]
[]
[]
[null,null,null,null,null,null,null,null,null,null,null,"Total for Object Code:",null,null,null,{"$f":"SUM(P231:Q264)","v":0}]
[]
[null,"Page 9"]
[null,{"$f":"'Main Page'!$G$9","v":"2024-2025"},"School Division:",null,{"$f":"'Main Page'!$F$13","v":0},null,null,null,"Division Number:",{"$f":"'Main Page'!$F$14","v":" "},{"$f":"'Main Page'!$B$6","v":"Title III, Part A, Language Instruction for English Learners and Immigrant Students "}]
[null,"DETAILED BUDGET DESCRIPTION OF OBJECT CODE 6000"]
[null,"Provide a description of materials, supplies, and all equipment less $5,000 per unit.  Indicate the estimated quantity of each item."]
[]
[]
[null,"Please provide a detailed description of Private School activities (If no private school set-aside is present, please enter N/A). "]
[]
[null,"Item Description",null,null,null,null,null,null,null,"Category",null,null,null,"Quantity",null,"Total Cost"]
[]
[]
[]
[]
[]
[]
[]
[]
[]
[]
[]
[]
[]
[]
[]
[]
[]
[]
[]
[]
[]
[]
[]
[]
[]
[]
[]
[]
[]
[]
[]
[]
[]
[]
[]
[]
[null,null,null,null,null,null,null,null,null,null,null,"Total for Object Code:",null,null,null,{"$f":"SUM(P276:Q311)","v":0}]
[]
[null,"Page 10"]
[null,{"$f":"'Main Page'!$G$9","v":"2024-2025"},"School Division:",null,{"$f":"'Main Page'!$F$13","v":0},null,null,null,"Division Number:",{"$f":"'Main Page'!$F$14","v":" "},{"$f":"'Main Page'!$B$6","v":"Title III, Part A, Language Instruction for English Learners and Immigrant Students "}]
[null,"DETAILED BUDGET DESCRIPTION OF OBJECT CODE 8000"]
[null,"Provide a description for expenses related to object code.   All capital outlay expenditures over $5,000 per unit must be approved by the Virginia Department of Education through the application submission and approval process. If the local school division has established a threshold of a lesser amount, items equal to that amount or greater must be itemized in Object Code 8000.  Specify equipment quantities."]
[]
[]
[null,"Item Description",null,null,null,null,null,null,null,"Category",null,null,null,"Quantity",null,"Total Cost"]
[]
[]
[]
[]
[]
[]
[]
[]
[]
[]
[]
[]
[]
[]
[]
[]
[]
[]
[]
[]
[]
[]
[]
[]
[]
[]
[]
[]
[]
[]
[]
[]
[]
[null,null,null,null,null,null,null,null,null,null,null,"Total for Object Code:",null,null,null,{"$f":"SUM(P321:Q353)","v":0}]
[]
[null,"Page 11"]

{"sheet":"Transferability","index":4,"n_rows":359,"n_cols":16,"rows_kept":359,"cut":false,"hidden":false,"merged":[[20,11,20,13],[19,11,19,13],[18,11,18,13],[17,11,17,13],[16,11,16,13],[15,11,15,13],[14,11,14,13],[13,11,13,13],[12,11,12,13],[11,11,11,13],[10,11,10,13],[36,11,36,13],[30,11,30,13],[29,11,29,13],[28,11,28,13],[27,11,27,13],[26,11,26,13],[25,11,25,13],[24,11,24,13],[21,7,21,9],[20,7,20,9],[19,7,19,9],[37,11,37,13],[37,14,37,16],[33,14,33,16],[31,14,31,16],[27,14,27,16],[23,14,23,16],[20,14,20,16],[13,7,13,9],[12,7,12,9],[11,7,11,9],[10,7,10,9],[37,7,37,9],[10,10,37,10],[26,7,26,9],[25,7,25,9],[24,7,24,9],[17,14,17,16],[13,14,13,16],[10,14,12,16],[14,14,16,16],[18,14,19,16],[21,14,22,16],[24,14,26,16],[28,14,30,16],[32,14,32,16],[34,14,36,16],[23,11,23,13],[22,11,22,13],[21,11,21,13],[354,15,354,16],[355,15,355,16],[356,15,356,16],[291,15,291,16],[292,15,292,16],[293,15,293,16],[294,15,294,16],[295,15,295,16],[296,15,296,16],[297,15,297,16],[298,15,298,16],[299,15,299,16],[300,15,300,16],[301,15,301,16],[305,15,305,16],[306,15,306,16],[307,15,307,16],[308,15,308,16],[309,15,309,16],[302,15,302,16],[303,15,303,16],[304,15,304,16],[255,15,255,16],[256,15,256,16],[257,15,257,16],[258,15,258,16],[35,11,35,13],[34,11,34,13],[33,11,33,13],[32,11,32,13],[31,11,31,13],[357,15,357,16],[1,1,1,16],[3,1,3,16],[5,1,5,16],[6,1,6,16],[7,7,7,9],[8,7,8,9],[7,10,8,10],[7,11,7,13],[8,11,8,13],[7,14,8,16],[9,14,9,16],[9,7,9,13],[36,7,36,9],[35,7,35,9],[34,7,34,9],[33,7,33,9],[32,7,32,9],[31,7,31,9],[30,7,30,9],[351,15,351,16],[352,15,352,16],[353,15,353,16],[94,1,94,11],[94,12,94,14],[95,1,95,11],[95,12,95,14],[92,1,92,11],[92,12,92,14],[93,1,93,11],[93,12,93,14],[285,15,285,16],[286,15,286,16],[287,15,287,16],[288,15,288,16],[289,15,289,16],[290,15,290,16],[63,15,63,16],[64,15,64,16],[65,15,65,16],[66,15,66,16],[67,15,67,16],[68,15,68,16],[69,15,69,16],[70,15,70,16],[71,15,71,16],[259,15,259,16],[260,15,260,16],[261,15,261,16],[262,15,262,16],[263,15,263,16],[264,15,264,16],[265,15,265,16],[266,15,266,16],[72,15,72,16],[59,15,59,16],[60,15,60,16],[61,15,61,16],[62,15,62,16],[61,1,61,8],[61,9,61,12],[61,13,61,14],[62,1,62,8],[62,9,62,12],[62,13,62,14],[59,1,59,8],[59,9,59,12],[59,13,59,14],[60,1,60,8],[60,9,60,12],[60,13,60,14],[82,1,82,16],[73,15,73,16],[74,15,74,16],[75,15,75,16],[76,15,76,16],[78,1,78,17],[75,1,75,8],[75,9,75,12],[68,1,68,8],[68,9,68,12],[68,13,68,14],[75,13,75,14],[76,9,76,12],[76,13,76,14],[74,1,74,8],[74,9,74,12],[350,1,350,8],[350,9,350,12],[350,13,350,14],[347,1,347,8],[347,9,347,12],[347,13,347,14],[348,1,348,8],[348,9,348,12],[0,10,0,16],[40,10,40,16],[79,10,79,16],[128,10,128,16],[177,10,177,16],[225,10,225,16],[272,10,272,16],[317,10,317,16],[318,1,318,16],[319,1,319,16],[320,1,320,16],[321,1,321,16],[275,1,275,16],[276,1,276,16],[228,1,228,16],[229,1,229,16],[180,1,180,16],[181,1,181,16],[131,1,131,16],[132,1,132,16],[92,15,92,16],[93,15,93,16],[94,15,94,16],[95,15,95,16],[47,1,47,16],[349,15,349,16],[350,15,350,16],[343,1,343,8],[343,9,343,12],[343,13,343,14],[344,1,344,8],[344,9,344,12],[344,13,344,14],[344,15,344,16],[357,9,357,14],[358,1,358,17],[36,2,36,6],[355,1,355,8],[355,9,355,12],[355,13,355,14],[356,1,356,8],[356,9,356,12],[356,13,356,14],[353,1,353,8],[353,9,353,12],[353,13,353,14],[354,1,354,8],[354,9,354,12],[354,13,354,14],[351,1,351,8],[351,9,351,12],[351,13,351,14],[352,1,352,8],[352,9,352,12],[352,13,352,14],[349,1,349,8],[349,9,349,12],[337,15,337,16],[338,15,338,16],[337,1,337,8],[337,9,337,12],[337,13,337,14],[338,1,338,8],[338,9,338,12],[338,13,338,14],[335,1,335,8],[335,9,335,12],[335,13,335,14],[336,1,336,8],[343,15,343,16],[348,13,348,14],[345,1,345,8],[345,9,345,12],[345,13,345,14],[346,1,346,8],[346,9,346,12],[346,13,346,14],[345,15,345,16],[346,15,346,16],[347,15,347,16],[348,15,348,16],[349,13,349,14],[327,1,327,8],[327,9,327,12],[327,13,327,14],[328,1,328,8],[328,9,328,12],[328,13,328,14],[327,15,327,16],[328,15,328,16],[329,15,329,16],[330,15,330,16],[331,15,331,16],[332,15,332,16],[341,1,341,8],[341,9,341,12],[341,13,341,14],[342,1,342,8],[342,9,342,12],[342,13,342,14],[339,1,339,8],[339,9,339,12],[339,13,339,14],[340,1,340,8],[340,9,340,12],[340,13,340,14],[339,15,339,16],[340,15,340,16],[341,15,341,16],[342,15,342,16],[333,15,333,16],[334,15,334,16],[335,15,335,16],[336,15,336,16],[331,1,331,8],[331,9,331,12],[331,13,331,14],[332,1,332,8],[332,9,332,12],[332,13,332,14],[329,1,329,8],[329,9,329,12],[329,13,329,14],[330,1,330,8],[330,9,330,12],[330,13,330,14],[336,9,336,12],[336,13,336,14],[333,1,333,8],[333,9,333,12],[333,13,333,14],[334,1,334,8],[334,9,334,12],[334,13,334,14],[323,1,323,8],[323,9,323,12],[323,13,323,14],[324,1,324,8],[324,9,324,12],[324,13,324,14],[322,1,322,8],[322,9,322,12],[322,13,322,14],[322,15,322,16],[323,15,323,16],[324,15,324,16],[325,15,325,16],[326,15,326,16],[315,9,315,14],[316,1,316,17],[313,1,313,8],[313,9,313,12],[313,13,313,14],[314,1,314,8],[314,9,314,12],[314,13,314,14],[325,1,325,8],[325,9,325,12],[325,13,325,14],[326,1,326,8],[326,9,326,12],[326,13,326,14],[311,1,311,8],[311,9,311,12],[311,13,311,14],[312,1,312,8],[312,9,312,12],[312,13,312,14],[311,15,311,16],[312,15,312,16],[313,15,313,16],[314,15,314,16],[315,15,315,16],[309,1,309,8],[309,9,309,12],[309,13,309,14],[310,1,310,8],[310,9,310,12],[310,13,310,14],[310,15,310,16],[302,13,302,14],[299,1,299,8],[299,9,299,12],[299,13,299,14],[300,1,300,8],[300,9,300,12],[300,13,300,14],[307,1,307,8],[307,9,307,12],[307,13,307,14],[308,1,308,8],[308,9,308,12],[308,13,308,14],[305,1,305,8],[305,9,305,12],[305,13,305,14],[306,1,306,8],[306,9,306,12],[306,13,306,14],[303,1,303,8],[303,9,303,12],[303,13,303,14],[304,1,304,8],[304,9,304,12],[304,13,304,14],[301,1,301,8],[301,9,301,12],[301,13,301,14],[302,1,302,8],[302,9,302,12],[297,1,297,8],[297,9,297,12],[297,13,297,14],[298,1,298,8],[298,9,298,12],[298,13,298,14],[295,1,295,8],[295,9,295,12],[295,13,295,14],[296,1,296,8],[296,9,296,12],[296,13,296,14],[293,1,293,8],[293,9,293,12],[293,13,293,14],[294,1,294,8],[294,9,294,12],[294,13,294,14],[291,1,291,8],[291,9,291,12],[291,13,291,14],[292,1,292,8],[292,9,292,12],[292,13,292,14],[289,1,289,8],[289,9,289,12],[289,13,289,14],[290,1,290,8],[290,9,290,12],[290,13,290,14],[287,1,287,8],[287,9,287,12],[287,13,287,14],[288,1,288,8],[288,9,288,12],[288,13,288,14],[285,1,285,8],[285,9,285,12],[285,13,285,14],[286,1,286,8],[286,9,286,12],[286,13,286,14],[283,1,283,8],[283,9,283,12],[283,13,283,14],[284,1,284,8],[284,9,284,12],[284,13,284,14],[282,1,282,8],[282,9,282,12],[282,13,282,14],[277,1,277,16],[278,1,278,16],[281,15,281,16],[273,1,273,16],[274,1,274,16],[279,15,279,16],[280,15,280,16],[282,15,282,16],[283,15,283,16],[284,15,284,16],[263,1,263,11],[263,12,263,14],[281,1,281,8],[281,9,281,12],[281,13,281,14],[264,1,264,11],[264,12,264,14],[261,1,261,11],[261,12,261,14],[262,1,262,11],[262,12,262,14],[279,1,279,8],[279,9,279,12],[279,13,279,14],[280,1,280,8],[280,9,280,12],[280,13,280,14],[270,11,270,14],[267,15,267,16],[268,15,268,16],[269,15,269,16],[270,15,270,16],[271,1,271,17],[267,1,267,11],[259,1,259,11],[259,12,259,14],[260,1,260,11],[260,12,260,14],[257,1,257,11],[257,12,257,14],[269,1,269,11],[269,12,269,14],[258,1,258,11],[258,12,258,14],[255,1,255,11],[255,12,255,14],[256,1,256,11],[256,12,256,14],[265,1,265,11],[265,12,265,14],[266,1,266,11],[266,12,266,14],[267,12,267,14],[268,1,268,11],[268,12,268,14],[253,1,253,11],[253,12,253,14],[254,1,254,11],[254,12,254,14],[251,1,251,11],[251,12,251,14],[252,1,252,11],[252,12,252,14],[249,1,249,11],[249,12,249,14],[250,1,250,11],[250,12,250,14],[249,15,249,16],[250,15,250,16],[251,15,251,16],[252,15,252,16],[253,15,253,16],[254,15,254,16],[247,1,247,11],[247,12,247,14],[248,1,248,11],[248,12,248,14],[245,1,245,11],[245,12,245,14],[246,1,246,11],[246,12,246,14],[243,1,243,11],[243,12,243,14],[244,1,244,11],[244,12,244,14],[243,15,243,16],[244,15,244,16],[245,15,245,16],[246,15,246,16],[247,15,247,16],[248,15,248,16],[241,1,241,11],[241,12,241,14],[242,1,242,11],[242,12,242,14],[239,1,239,11],[239,12,239,14],[240,1,240,11],[240,12,240,14],[237,1,237,11],[237,12,237,14],[238,1,238,11],[238,12,238,14],[237,15,237,16],[238,15,238,16],[239,15,239,16],[240,15,240,16],[241,15,241,16],[242,15,242,16],[235,1,235,11],[235,12,235,14],[236,1,236,11],[236,12,236,14],[233,1,233,11],[233,12,233,14],[234,1,234,11],[234,12,234,14],[232,1,232,11],[232,12,232,14],[230,1,230,16],[231,1,231,16],[232,15,232,16],[233,15,233,16],[234,15,234,16],[235,15,235,16],[236,15,236,16],[223,11,223,14],[224,1,224,17],[221,1,221,11],[221,12,221,14],[222,1,222,11],[222,12,222,14],[219,1,219,11],[219,12,219,14],[220,1,220,11],[220,12,220,14],[226,1,226,16],[227,1,227,16],[219,15,219,16],[220,15,220,16],[221,15,221,16],[222,15,222,16],[223,15,223,16],[217,1,217,11],[217,12,217,14],[218,1,218,11],[218,12,218,14],[215,1,215,11],[215,12,215,14],[216,1,216,11],[216,12,216,14],[213,1,213,11],[213,12,213,14],[214,1,214,11],[214,12,214,14],[213,15,213,16],[214,15,214,16],[215,15,215,16],[216,15,216,16],[217,15,217,16],[218,15,218,16],[211,1,211,11],[211,12,211,14],[212,1,212,11],[212,12,212,14],[209,1,209,11],[209,12,209,14],[210,1,210,11],[210,12,210,14],[207,1,207,11],[207,12,207,14],[208,1,208,11],[208,12,208,14],[207,15,207,16],[208,15,208,16],[209,15,209,16],[210,15,210,16],[211,15,211,16],[212,15,212,16],[205,1,205,11],[205,12,205,14],[206,1,206,11],[206,12,206,14],[203,1,203,11],[203,12,203,14],[204,1,204,11],[204,12,204,14],[201,1,201,11],[201,12,201,14],[202,1,202,11],[202,12,202,14],[201,15,201,16],[202,15,202,16],[203,15,203,16],[204,15,204,16],[205,15,205,16],[206,15,206,16],[199,1,199,11],[199,12,199,14],[200,1,200,11],[200,12,200,14],[197,1,197,11],[197,12,197,14],[198,1,198,11],[198,12,198,14],[195,1,195,11],[195,12,195,14],[196,1,196,11],[196,12,196,14],[195,15,195,16],[196,15,196,16],[197,15,197,16],[198,15,198,16],[199,15,199,16],[200,15,200,16],[193,1,193,11],[193,12,193,14],[194,1,194,11],[194,12,194,14],[191,1,191,11],[191,12,191,14],[192,1,192,11],[192,12,192,14],[189,1,189,11],[189,12,189,14],[190,1,190,11],[190,12,190,14],[189,15,189,16],[190,15,190,16],[191,15,191,16],[192,15,192,16],[193,15,193,16],[194,15,194,16],[187,1,187,11],[187,12,187,14],[188,1,188,11],[188,12,188,14],[185,1,185,11],[185,12,185,14],[186,1,186,11],[186,12,186,14],[184,1,184,11],[184,12,184,14],[182,1,182,16],[183,1,183,16],[184,15,184,16],[185,15,185,16],[186,15,186,16],[187,15,187,16],[188,15,188,16],[174,11,174,14],[176,1,176,17],[172,1,172,11],[172,12,172,14],[173,1,173,11],[173,12,173,14],[170,1,170,11],[170,12,170,14],[171,1,171,11],[171,12,171,14],[178,1,178,16],[179,1,179,16],[170,15,170,16],[171,15,171,16],[172,15,172,16],[173,15,173,16],[174,15,174,16],[168,1,168,11],[168,12,168,14],[169,1,169,11],[169,12,169,14],[166,1,166,11],[166,12,166,14],[167,1,167,11],[167,12,167,14],[164,1,164,11],[164,12,164,14],[165,1,165,11],[165,12,165,14],[164,15,164,16],[165,15,165,16],[166,15,166,16],[167,15,167,16],[168,15,168,16],[169,15,169,16],[162,1,162,11],[162,12,162,14],[163,1,163,11],[163,12,163,14],[160,1,160,11],[160,12,160,14],[161,1,161,11],[161,12,161,14],[158,1,158,11],[158,12,158,14],[159,1,159,11],[159,12,159,14],[158,15,158,16],[159,15,159,16],[160,15,160,16],[161,15,161,16],[162,15,162,16],[163,15,163,16],[156,1,156,11],[156,12,156,14],[157,1,157,11],[157,12,157,14],[154,1,154,11],[154,12,154,14],[155,1,155,11],[155,12,155,14],[152,1,152,11],[152,12,152,14],[153,1,153,11],[153,12,153,14],[152,15,152,16],[153,15,153,16],[154,15,154,16],[155,15,155,16],[156,15,156,16],[157,15,157,16],[150,1,150,11],[150,12,150,14],[151,1,151,11],[151,12,151,14],[148,1,148,11],[148,12,148,14],[149,1,149,11],[149,12,149,14],[146,1,146,11],[146,12,146,14],[147,1,147,11],[147,12,147,14],[146,15,146,16],[147,15,147,16],[148,15,148,16],[149,15,149,16],[150,15,150,16],[151,15,151,16],[144,1,144,11],[144,12,144,14],[145,1,145,11],[145,12,145,14],[142,1,142,11],[142,12,142,14],[143,1,143,11],[143,12,143,14],[140,1,140,11],[140,12,140,14],[141,1,141,11],[141,12,141,14],[140,15,140,16],[141,15,141,16],[142,15,142,16],[143,15,143,16],[144,15,144,16],[145,15,145,16],[138,1,138,11],[138,12,138,14],[139,1,139,11],[139,12,139,14],[136,1,136,11],[136,12,136,14],[137,1,137,11],[137,12,137,14],[135,1,135,11],[135,12,135,14],[133,1,133,16],[134,1,134,16],[135,15,135,16],[136,15,136,16],[137,15,137,16],[138,15,138,16],[139,15,139,16],[126,11,126,14],[127,1,127,17],[124,1,124,11],[124,12,124,14],[125,1,125,11],[125,12,125,14],[122,1,122,11],[122,12,122,14],[123,1,123,11],[123,12,123,14],[129,1,129,16],[130,1,130,16],[122,15,122,16],[123,15,123,16],[124,15,124,16],[125,15,125,16],[126,15,126,16],[120,1,120,11],[120,12,120,14],[121,1,121,11],[121,12,121,14],[118,1,118,11],[118,12,118,14],[119,1,119,11],[119,12,119,14],[116,1,116,11],[116,12,116,14],[117,1,117,11],[117,12,117,14],[116,15,116,16],[117,15,117,16],[118,15,118,16],[119,15,119,16],[120,15,120,16],[121,15,121,16],[114,1,114,11],[114,12,114,14],[115,1,115,11],[115,12,115,14],[112,1,112,11],[112,12,112,14],[113,1,113,11],[113,12,113,14],[110,1,110,11],[110,12,110,14],[111,1,111,11],[111,12,111,14],[110,15,110,16],[111,15,111,16],[112,15,112,16],[113,15,113,16],[114,15,114,16],[115,15,115,16],[108,1,108,11],[108,12,108,14],[109,1,109,11],[109,12,109,14],[106,1,106,11],[106,12,106,14],[107,1,107,11],[107,12,107,14],[104,1,104,11],[104,12,104,14],[105,1,105,11],[105,12,105,14],[104,15,104,16],[105,15,105,16],[106,15,106,16],[107,15,107,16],[108,15,108,16],[109,15,109,16],[102,1,102,11],[102,12,102,14],[103,1,103,11],[103,12,103,14],[100,1,100,11],[100,12,100,14],[101,1,101,11],[101,12,101,14],[98,1,98,11],[98,12,98,14],[99,1,99,11],[99,12,99,14],[100,15,100,16],[101,15,101,16],[102,15,102,16],[103,15,103,16],[96,1,96,11],[96,12,96,14],[97,1,97,11],[97,12,97,14],[98,15,98,16],[99,15,99,16],[96,15,96,16],[97,15,97,16],[74,13,74,14],[90,1,90,11],[90,12,90,14],[91,1,91,11],[91,12,91,14],[89,1,89,11],[89,12,89,14],[86,1,86,11],[86,12,86,14],[87,1,87,11],[87,12,87,14],[84,1,84,16],[85,1,85,16],[80,1,80,16],[81,1,81,16],[86,15,86,16],[87,15,87,16],[88,1,88,11],[88,12,88,14],[83,1,83,16],[88,15,88,16],[89,15,89,16],[90,15,90,16],[91,15,91,16],[63,1,63,8],[63,9,63,12],[63,13,63,14],[64,1,64,8],[64,9,64,12],[64,13,64,14],[73,1,73,8],[73,9,73,12],[73,13,73,14],[54,1,54,8],[54,9,54,12],[54,13,54,14],[71,1,71,8],[71,9,71,12],[71,13,71,14],[72,1,72,8],[72,9,72,12],[72,13,72,14],[69,1,69,8],[69,9,69,12],[69,13,69,14],[70,1,70,8],[70,9,70,12],[70,13,70,14],[57,1,57,8],[57,9,57,12],[57,13,57,14],[51,1,51,8],[51,9,51,12],[51,13,51,14],[52,1,52,8],[52,9,52,12],[52,13,52,14],[55,1,55,8],[55,9,55,12],[55,13,55,14],[34,2,34,6],[67,1,67,8],[67,9,67,12],[67,13,67,14],[48,1,48,16],[39,1,39,16],[38,1,38,16],[41,1,41,16],[42,1,42,16],[43,13,43,16],[44,1,44,16],[45,1,45,16],[46,1,46,16],[55,15,55,16],[56,15,56,16],[57,15,57,16],[58,15,58,16],[65,1,65,8],[65,9,65,12],[65,13,65,14],[66,1,66,8],[66,9,66,12],[66,13,66,14],[2,1,2,17],[4,1,4,17],[9,2,9,6],[10,1,13,1],[10,2,10,6],[11,2,11,6],[7,1,8,6],[12,2,12,6],[16,2,16,6],[17,2,17,6]],"merged_total":1054,"flags":["merged_cut"]}
[null,{"$f":"'Main Page'!$G$9","v":"2024-2025"},null,"School Division:",{"$f":"'Main Page'!$F$13","v":0},null,null,null,"Division Number:",{"$f":"'Main Page'!$F$14","v":" "},{"$f":"'Main Page'!$B$6","v":"Title III, Part A, Language Instruction for English Learners and Immigrant Students "}]
[null,"D.  BUDGET SUMMARY"]
[]
[null,"Section 5103(b)(2) of ESSA allows divisions to transfer all or a portion of the funds received from Title II, Part A, or Title IV, Part A, into: Title I, Part A; Title I, Part C; Title I, Part D; Title II, Part A; Title III, Part A; Title IV, Part A; or Title V, Part B.  "]
[]
[null,"Complete the tab below if funds will be transferred under Section 5103(b)(2). Please note that prior approval is required to transfer funds. The transfer request form is provided at "]
[null,"Transfer Request Form"]
[null,null,null,null,null,null,null,"Title II, Part A, Transferability\nAward S367A240044\nProject Code APE60016",null,null,null,"Title IV, Part A, Transferability\nAward S424A240048\nProject Code APE60023"]
[null,null,null,null,null,null,null,{"$f":"Narrative!$N$63","v":0},null,null,null,{"$f":"Narrative!$N$66","v":0}]
[null,"OBJECT CODE","EXPENDITURE",null,null,null,null,"AMOUNT TRANSFERRED INTO PROGRAM",null,null,null,null,null,null,"DOES THE BUDGET SUMMARY  MATCH THE DETAILED BUDGET BREAKDOWN?"]
[null,"1000 -\nPersonnel Services","Administrative"]
[null,null,"Non-Administrative"]
[null,null,"Private School Set-Aside "]
[null,null,"Total Personal Services",null,null,null,null,{"$f":"SUM(H11:K13)","v":0},null,null,null,{"$f":"SUM(L11:P13)","v":0},null,null,{"$f":"IF(SUM(P77)=SUM(H14,L14),\"Yes\", \"No - Please review your entries.\")","v":"Yes"}]
[null,"2000 -\nEmployee Benefits","Administrative"]
[null,null,"Non-Administrative"]
[null,null,"Private School Set-Aside "]
[null,null,"Total Employee Benefits",null,null,null,null,{"$f":"SUM(H15:K17)","v":0},null,null,null,{"$f":"SUM(L15:P17)","v":0},null,null,{"$f":"IF(SUM(P127)=SUM(H18,L18),\"Yes\",\"No - Please review your entries.\")","v":"Yes"}]
[null,"3000 - \nPurchased/\nContracted Services","Conracted Services"]
[null,null,"Private School Set-Aside "]
[null,null,"Total Purchased/Contracted Services",null,null,null,null,{"$f":"SUM(H19:K20)","v":0},null,null,null,{"$f":"SUM(L19:P20)","v":0},null,null,{"$f":"IF(SUM(P175)=SUM(H21,L21),\"Yes\",\"No - Please review your entries.\")","v":"Yes"}]
[null,"4000 - \nInternal Services","Internal Services"]
[null,null,"Private School Set-Aside "]
[null,null,"Total Internal Services",null,null,null,null,{"$f":"SUM(H22:K23)","v":0},null,null,null,{"$f":"SUM(L22:P23)","v":0},null,null,{"$f":"IF(SUM(P224)=SUM(H24,L24),\"Yes\",\"No - Please review your entries.\")","v":"Yes"}]
[null,"5000 - \nOther  \nCharges","Indirect Cost"]
[null,null,"Non-Administrative"]
[null,null,"Private School Set-Aside "]
[null,null,"Total Other Charges",null,null,null,null,{"$f":"SUM(H25:K27)","v":0},null,null,null,{"$f":"SUM(L25:P27)","v":0},null,null,{"$f":"IF(SUM(P271)=SUM(H28,L28),\"Yes\",\"No - Please review your entries.\")","v":"Yes"}]
[null,"6000 - \nMaterials\nand Supplies","Administrative"]
[null,null,"Materials"]
[null,null,"Private School Set-Aside "]
[null,null,"Total Materials and Supplies",null,null,null,null,{"$f":"SUM(H29:K31)","v":0},null,null,null,{"$f":"SUM(L29:P31)","v":0},null,null,{"$f":"IF(SUM(P316)=SUM(H32,L32),\"Yes\",\"No - Please review your entries.\")","v":"Yes"}]
[null,"8000 - \nCapital\nOutlay","Non-Administrative"]
[null,null,"Total Capital Outlay",null,null,null,null,{"$f":"SUM(H33:K33)","v":0},null,null,null,{"$f":"SUM(L33:P33)","v":0},null,null,{"$f":"IF(SUM(P358)=SUM(H34,L34),\"Yes\",\"No - Please review your entries.\")","v":"Yes"}]
[null,null,"TOTAL BUDGET",null,null,null,null,{"$f":"SUM(H34,H32,H28,H24,H21,H18,H14)","v":0},null,null,null,{"$f":"SUM(L14,L18,L21,L24,L28,L32,L34)","v":0}]
[null,null,"TOTAL SET-ASIDE ",null,null,null,null,{"$f":"H11+H15+H25+H29","v":0},null,null,null,{"$f":"L11+L15+L25+L29","v":0}]
[null,null,"TOTAL PRIVATE SCHOOL SET-ASIDE ",null,null,null,null,{"$f":"SUM(H13,H17,H20,H23,H27,H31)","v":0},null,null,null,{"$f":"SUM(L13,L17,L20,L23,L27,L31)","v":0}]
[null,null,"DOES THE TRANSFERABILITY BUDGET SUMMARY MATCH THE TRANSFERABILITY ALLOCATION?",null,null,null,null,{"$f":"IF(SUM(H35,L35)=SUM(H9,L9),\"Yes\",\"No - Please review your entries.\")","v":"Yes"},null,null,null,"Difference",null,null,{"$f":"SUM(H35+L35)-SUM(H9+L9)","v":0}]
[]
[null,"Page 12"]
[null,{"$f":"'Main Page'!$G$9","v":"2024-2025"},null,"School Division:",{"$f":"'Main Page'!$F$13","v":0},null,null,null,"Division Number:",{"$f":"'Main Page'!$F$14","v":" "},{"$f":"'Main Page'!$B$6","v":"Title III, Part A, Language Instruction for English Learners and Immigrant Students "}]
[null,"E.  DETAILED BUDGET BREAKDOWN"]
[null,"Prepare a detailed breakdown of the budget categories for Object Codes 1000-6000 and 8000.  Choose the appropriate category for each expense in the dropdown list under \"Funding Source.\""]
[null,"Does the Transferability Detailed Budget Breakdown Match the Transferability Allocation?",null,null,null,null,null,null,null,{"$f":"IF(SUM(H35,L35)=SUM(P77,P127,P175, P224, P271, P316, P358),\"Yes\",\"No - Please review your entries.\")","v":"Yes"}]
[]
[null,"DETAILED BUDGET DESCRIPTION OF OBJECT CODE 1000"]
[null,"Provide a description of the positions supported with funds from this program. Indicate if any positions are newly funded under this program.  Explain the supplementary nature of any new positions. (Required if staff positions are to be funded by federal funds)."]
[]
[]
[null,"Please provide a detailed description of Private School activities (If no private school set-aside is present, please enter N/A). "]
[]
[null,"Item Description",null,null,null,null,null,null,null,"Funding Source",null,null,null,"FTEs",null,"Total Cost"]
[]
[]
[]
[]
[]
[]
[]
[]
[]
[]
[]
[]
[]
[]
[]
[]
[]
[]
[]
[]
[]
[]
[]
[]
[null,null,null,null,null,"      ",null,null,null,"Total for Object Code:",null,null,null,{"$f":"SUM(N53:O76)","v":0},null,{"$f":"SUM(P53:Q76)","v":0}]
[]
[null,"Page 13"]
[null,{"$f":"'Main Page'!$G$9","v":"2024-2025"},null,"School Division:",{"$f":"'Main Page'!$F$13","v":0},null,null,null,"Division Number:",{"$f":"'Main Page'!$F$14","v":" "},{"$f":"'Main Page'!$B$6","v":"Title III, Part A, Language Instruction for English Learners and Immigrant Students "}]
[null,"DETAILED BUDGET DESCRIPTION OF OBJECT CODE 2000"]
[null,"Indicate the fixed charge categories (such as FICA, health insurance, etc.) and specify the amount of each."]
[]
[]
[null,"Please provide a detailed description of Private School activities (If no private school set-aside is present, please enter N/A). "]
[]
[null,"Item Description",null,null,null,null,null,null,null,null,null,null,"Funding Source ",null,null,"Total Cost"]
[]
[]
[]
[]
[]
[]
[]
[]
[]
[]
[]
[]
[]
[]
[]
[]
[]
[]
[]
[]
[]
[]
[]
[]
[]
[]
[]
[]
[]
[]
[]
[]
[]
[]
[]
[]
[]
[]
[]
[null,null,null,null,null,"      ",null,null,null,null,null,"Total for Object Code:",null,null,null,{"$f":"SUM(P88:Q126)","v":0}]
[null,"Page 14"]
[null,{"$f":"'Main Page'!$G$9","v":"2024-2025"},null,"School Division:",{"$f":"'Main Page'!$F$13","v":0},null,null,null,"Division Number:",{"$f":"'Main Page'!$F$14","v":" "},{"$f":"'Main Page'!$B$6","v":"Title III, Part A, Language Instruction for English Learners and Immigrant Students "}]
[null,"DETAILED BUDGET DESCRIPTION OF OBJECT CODE 3000"]
[null,"Please indicate how these funds will support any services and activities that are described in this application.  If program funds are expended for professional development, justify such expenditures by demonstrating a relationship between the proposed expenditure for professional development and the program services and activities described in the application. "]
[]
[]
[null,"Please provide a detailed description of Private School activities (If no private school set-aside is present, please enter N/A). "]
[]
[null,"Item Description",null,null,null,null,null,null,null,null,null,null,"Funding Source ",null,null,"Total Cost"]
[]
[]
[]
[]
[]
[]
[]
[]
[]
[]
[]
[]
[]
[]
[]
[]
[]
[]
[]
[]
[]
[]
[]
[]
[]
[]
[]
[]
[]
[]
[]
[]
[]
[]
[]
[]
[]
[]
[null,null,null,null,null,"      ",null,null,null,null,null,"Total for Object Code:",null,null,null,{"$f":"SUM(P137:Q174)","v":0}]
[]
[null,"Page 15"]
[null,{"$f":"'Main Page'!$G$9","v":"2024-2025"},null,"School Division:",{"$f":"'Main Page'!$F$13","v":0},null,null,null,"Division Number:",{"$f":"'Main Page'!$F$14","v":" "},{"$f":"'Main Page'!$B$6","v":"Title III, Part A, Language Instruction for English Learners and Immigrant Students "}]
[null,"DETAILED BUDGET DESCRIPTION OF OBJECT CODE 4000"]
[null,"If program funds are expended for internal services, describe these services below."]
[]
[]
[null,"Please provide a detailed description of Private School activities (If no private school set-aside is present, please enter N/A). "]
[]
[null,"Item Description",null,null,null,null,null,null,null,null,null,null,"Funding Source ",null,null,"Total Cost"]
[]
[]
[]
[]
[]
[]
[]
[]
[]
[]
[]
[]
[]
[]
[]
[]
[]
[]
[]
[]
[]
[]
[]
[]
[]
[]
[]
[]
[]
[]
[]
[]
[]
[]
[]
[]
[]
[]
[null,null,null,null,null,"      ",null,null,null,null,null,"Total for Object Code:",null,null,null,{"$f":"SUM(P186:Q223)","v":0}]
[null,"Page 16"]
[null,{"$f":"'Main Page'!$G$9","v":"2024-2025"},null,"School Division:",{"$f":"'Main Page'!$F$13","v":0},null,null,null,"Division Number:",{"$f":"'Main Page'!$F$14","v":" "},{"$f":"'Main Page'!$B$6","v":"Title III, Part A, Language Instruction for English Learners and Immigrant Students "}]
[null,"DETAILED BUDGET DESCRIPTION OF OBJECT CODE 5000"]
[null,"Provide a description for expenses related to object code 5000.  Include expenditures that support the use of programs. Includes expenditures that support the program, staff/administrative/consultant travel, office phone charges, training, leases/rental, indirect cost, and other."]
[]
[]
[null,"Please provide a detailed description of Private School activities (If no private school set-aside is present, please enter N/A). "]
[]
[null,"Item Description",null,null,null,null,null,null,null,null,null,null,"Funding Source ",null,null,"Total Cost"]
[]
[]
[]
[]
[]
[]
[]
[]
[]
[]
[]
[]
[]
[]
[]
[]
[]
[]
[]
[]
[]
[]
[]
[]
[]
[]
[]
[]
[]
[]
[]
[]
[]
[]
[]
[]
[]
[null,null,null,null,null,"      ",null,null,null,null,null,"Total for Object Code:",null,null,null,{"$f":"SUM(P234:Q270)","v":0}]
[null,"Page 17"]
[null,{"$f":"'Main Page'!$G$9","v":"2024-2025"},null,"School Division:",{"$f":"'Main Page'!$F$13","v":0},null,null,null,"Division Number:",{"$f":"'Main Page'!$F$14","v":" "},{"$f":"'Main Page'!$B$6","v":"Title III, Part A, Language Instruction for English Learners and Immigrant Students "}]
[null,"DETAILED BUDGET DESCRIPTION OF OBJECT CODE 6000"]
[null,"Provide a description of materials, supplies, and all equipment less $5,000 per unit.  Indicate the estimated quantity of each item."]
[]
[]
[null,"Please provide a detailed description of Private School activities (If no private school set-aside is present, please enter N/A). "]
[]
[null,"Item Description",null,null,null,null,null,null,null,"Funding Source",null,null,null,"Quantity",null,"Total Cost"]
[]
[]
[]
[]
[]
[]
[]
[]
[]
[]
[]
[]
[]
[]
[]
[]
[]
[]
[]
[]
[]
[]
[]
[]
[]
[]
[]
[]
[]
[]
[]
[]
[]
[]
[]
[null,null,null,null,null,"      ",null,null,null,"Total for Object Code:",null,null,null,null,null,{"$f":"SUM(P281:Q315)","v":0}]
[null,"Page 18"]
[null,{"$f":"'Main Page'!$G$9","v":"2024-2025"},null,"School Division:",{"$f":"'Main Page'!$F$13","v":0},null,null,null,"Division Number:",{"$f":"'Main Page'!$F$14","v":" "},{"$f":"'Main Page'!$B$6","v":"Title III, Part A, Language Instruction for English Learners and Immigrant Students "}]
[null,"DETAILED BUDGET DESCRIPTION OF OBJECT CODE 8000"]
[null,"Provide a description for expenses related to object code.   All capital outlay expenditures over $5,000 per unit must be approved by the Virginia Department of Education through the application submission and approval process. If the local school division has established a threshold of a lesser amount, items equal to that amount or greater must be itemized in Object Code 8000.  Specify equipment quantities."]
[]
[]
[null,"Item Description",null,null,null,null,null,null,null,"Funding Source",null,null,null,"Quantity",null,"Total Cost"]
[]
[]
[]
[]
[]
[]
[]
[]
[]
[]
[]
[]
[]
[]
[]
[]
[]
[]
[]
[]
[]
[]
[]
[]
[]
[]
[]
[]
[]
[]
[]
[]
[]
[]
[null,null,null,null,null,"      ",null,null,null,"Total for Object Code:",null,null,null,null,null,{"$f":"SUM(P324:Q357)","v":0}]
[null,"Page 19"]

{"sheet":"Title III Program","index":5,"n_rows":196,"n_cols":14,"rows_kept":196,"cut":false,"hidden":false,"merged":[[106,1,106,12],[106,13,106,16],[107,1,107,12],[107,13,107,16],[94,13,94,16],[90,1,90,12],[90,13,90,16],[91,1,91,12],[91,13,91,16],[92,1,92,12],[92,13,92,16],[105,1,105,12],[105,13,105,16],[190,1,190,16],[192,1,192,16],[193,1,193,16],[194,1,194,16],[195,1,195,16],[117,1,117,12],[117,13,117,16],[118,1,118,12],[118,13,118,16],[183,1,183,16],[184,1,184,16],[186,1,186,16],[187,1,187,16],[188,1,188,16],[120,1,120,16],[189,1,189,16],[176,1,176,16],[177,1,177,16],[178,1,178,16],[163,1,163,16],[179,1,179,16],[180,10,180,16],[181,1,181,16],[168,1,168,16],[83,10,83,16],[103,1,103,12],[103,13,103,16],[104,1,104,12],[104,13,104,16],[113,1,113,16],[115,1,115,16],[116,1,116,12],[116,13,116,16],[102,1,102,12],[102,13,102,16],[101,1,101,12],[101,13,101,16],[84,1,84,16],[85,1,85,16],[86,1,86,16],[87,1,87,16],[88,1,88,16],[109,1,109,12],[109,13,109,16],[112,1,112,16],[93,1,93,12],[93,13,93,16],[94,1,94,12],[170,1,170,16],[171,1,171,16],[172,1,172,16],[173,1,173,16],[174,1,174,16],[161,1,161,16],[162,1,162,16],[149,1,149,16],[150,10,150,16],[151,1,151,16],[167,1,167,16],[154,2,154,16],[155,2,155,16],[156,1,156,16],[157,1,157,16],[158,1,158,16],[160,1,160,16],[164,10,164,16],[165,1,165,16],[146,1,146,16],[147,1,147,16],[148,1,148,16],[153,1,153,16],[141,1,141,16],[142,1,142,16],[143,1,143,16],[144,1,144,16],[145,1,145,16],[136,1,136,16],[131,1,131,16],[132,1,132,16],[133,1,133,16],[134,1,134,16],[135,1,135,16],[140,1,140,16],[123,1,123,16],[124,1,124,16],[129,1,129,16],[130,1,130,16],[137,10,137,16],[138,1,138,16],[79,2,79,16],[80,1,80,16],[81,1,81,16],[82,1,82,16],[121,10,121,16],[122,1,122,16],[119,1,119,16],[128,2,128,16],[127,2,127,16],[126,2,126,16],[125,2,125,16],[89,1,89,16],[95,1,95,16],[97,1,97,16],[99,1,99,16],[100,1,100,12],[100,13,100,16],[108,1,108,12],[108,13,108,16],[96,1,96,16],[110,1,110,12],[110,13,110,16],[111,1,111,12],[111,13,111,16],[76,2,76,16],[77,1,77,16],[78,1,78,16],[64,1,64,16],[66,1,66,16],[67,1,67,16],[69,2,69,16],[70,1,70,16],[71,1,71,16],[74,1,74,16],[72,1,72,16],[73,10,73,16],[58,1,58,16],[63,2,63,16],[52,1,52,16],[53,1,53,16],[54,1,54,16],[55,1,55,16],[56,2,56,16],[57,1,57,16],[59,1,59,16],[60,10,60,16],[61,1,61,16],[51,2,51,16],[40,1,40,16],[41,2,41,16],[42,3,42,16],[43,1,43,16],[44,1,44,16],[45,1,45,16],[46,1,46,16],[47,1,47,16],[48,10,48,16],[49,1,49,16],[50,1,50,16],[32,2,32,16],[33,1,33,16],[34,1,34,16],[39,1,39,16],[26,14,26,16],[27,2,27,13],[27,14,27,16],[28,1,28,16],[35,1,35,16],[36,10,36,16],[37,1,37,16],[38,1,38,16],[31,1,31,16],[30,1,30,16],[16,1,16,16],[17,10,17,16],[25,2,25,13],[25,14,25,16],[29,2,29,16],[15,1,15,16],[20,1,20,16],[21,1,21,16],[22,1,27,1],[22,2,22,16],[23,2,23,13],[23,14,23,16],[24,2,24,13],[24,14,24,16],[26,2,26,13],[18,1,18,16],[19,1,19,16],[7,1,7,16],[9,2,9,16],[11,1,11,16],[12,1,12,16],[13,2,13,16],[14,1,14,16],[0,10,0,16],[1,1,1,16],[2,1,2,16],[3,1,3,16],[4,1,4,16],[5,1,5,16],[6,1,6,16],[10,2,10,16],[9,1,10,1]]}
[null,{"$f":"'Main Page'!$G$9","v":"2024-2025"},null,"School Division:",{"$f":"'Main Page'!$F$13","v":0},null,null,null,"Division Number:",{"$f":"'Main Page'!$F$14","v":" "},{"$f":"'Main Page'!$B$6","v":"Title III, Part A, Language Instruction for English Learners and Immigrant Students "}]
[null,"F.  PROGRAMS AND SERVICES FOR ELs AND THEIR FAMILIES"]
[]
[null,"Federal Civil Rights Requirements\nDivisions must provide programs and services for the education of English Learners (ELs) under Title VI of the Civil Rights Act of 1964, the Equal Educational Opportunities Act of 1974 (EEOA), Lau v Nichols (1974), Castañeda v Pickard (1981) and other civil rights laws and federal statutes and guidance.  Federal funds, including Title III, cannot be used to meet the federal requirements for ELs. Under the Castañeda standards, programs and services for ELs should: 1) be based on effective education theory and/or research recognized by legitimate experts in the field; 2) be implemented with fidelity and adequate resources to ensure a realistic chance of success within a reasonable timeframe; and 3) lead to improved academic outcomes within this reasonable timeframe.  "]
[]
[null,"Description of an Effective LIEP Supported by Local and/or State Funds: The division must implement an effective language instruction educational program (LIEP) or a combination of LIEPs in order to meet the needs of ELs and demonstrate effectiveness in increasing their English language proficiency and student academic achievement.  The chosen LIEP Model(s) must be state-approved."]
[null,"LIEP Model(s)"]
[]
[null,"Narrative Boxes:"]
[null,"Box 1:  ","Identify how evidence-based instruction is delivered to ELs at varying proficiency levels and grade span levels to develop their English language proficiency and increase their ability to meet challenging State academic standards. Include specialized programs for newcomer ELs, SLIFE, “opt-out” ELs, dually identified ELs, ELs at higher proficiency levels, and long-term ELs, if applicable.  List the LIEP Model(s) used in the LEA."]
[null,null,"LIEP Model(s)"]
[null,"\n\n"]
[]
[null,"Box 2:  ","Using Local and/or State Funds:  Describe the division’s plan to provide effective professional development that specifically relates to the identification and teaching of ELs as identified in Box 1.  "]
[]
[]
[null,"Page 20"]
[null,{"$f":"'Main Page'!$G$9","v":"2024-2025"},null,"School Division:",{"$f":"'Main Page'!$F$13","v":0},null,null,null,"Division Number:",{"$f":"'Main Page'!$F$14","v":" "},{"$f":"'Main Page'!$B$6","v":"Title III, Part A, Language Instruction for English Learners and Immigrant Students "}]
[null,"F.  PROGRAMS AND SERVICES FOR ELs AND THEIR FAMILIES (CONTINUED)"]
[]
[null,"Implementation of an Effective LIEP Supported by Local and/or State Funds:  The division must carry out a comprehensive analysis of the EL population within the division in order to, 1) design programs and services that will meet the needs of students; and 2) to determine the necessary resources for an effective implementation of the LIEP.  "]
[]
[null,"Box 3a:  ","Provide the following information regarding the division wide EL population. This can be based on ACCESS Assessment SY data 2022-2023 which was reflected for ACCESS Accountability in the 2023-2024 SY. "]
[null,null,"The number of ELs division-wide (Level 1-4.3)"]
[null,null,"The number of endorsed ESL teachers directly serving ELs \n\n"]
[null,null,"The ratio of ELs (LEP Code 1 & 2) to endorsed ESL teachers in the LEA\n"]
[null,null,"The percentage of ELs who made PROGRESS (Target 52%)\n\n"]
[null,null,"The percentage of ELs who reached PROFICIENCY (4.4+ on the ACCESS for ELLs assessment)"]
[]
[null,"Box 3b:  ","If the LEA did not meet State PROGRESS targets for 2022-2023 Assessment SY which impacts the 2023-2024 Accountability SY target of 52%, as shown in Box 3a, then outline the corrective action steps that the LEA has taken in order to meet state ESSA ELP accountability targets as approved in Virginia.   "]
[]
[]
[null,"Box 4:  ","Identify the amount of targeted language instruction for ELs the division determines appropriate at each proficiency level and/or grade span level. \n     • Example by Grade: K- 30 minutes, 5 times a week, LIEP Model – ELD. \n     • Example by ELP Level: Level 1: 45 minutes, 5 times a week, Grades K-2, LIEP Models – Newcomer and Content Classes with Integrated EL \n        Support. \nChoose a reporting format that supports your division EL scheduling policy.  "]
[]
[]
[null,"Page 21"]
[null,{"$f":"'Main Page'!$G$9","v":"2024-2025"},null,"School Division:",{"$f":"'Main Page'!$F$13","v":0},null,null,null,"Division Number:",{"$f":"'Main Page'!$F$14","v":" "},{"$f":"'Main Page'!$B$6","v":"Title III, Part A, Language Instruction for English Learners and Immigrant Students "}]
[null,"F.  PROGRAMS AND SERVICES FOR ELs AND THEIR FAMILIES (CONTINUED)"]
[]
[null,"Evaluation of the Effectiveness of the LIEP Supported by Local and/or State Funds: The division must evaluate the LIEP to determine its effectiveness in helping ELs make progress toward achieving English proficiency, exit the LIEP, and meet challenging State academic standards within a reasonable timeframe."]
[]
[null,"Box 5:  ","Describe the division’s procedures to evaluate programs and services for ELs.  Include the following information:\n• A timeline for evaluation; \n• The titles of stakeholders involved in the evaluation process; and \n• The data collected by the division to determine the effectiveness of the LIEP.  Data elements may include:"]
[null,null,null,"• EL academic achievement indicators by grade span or content area, \n• Specific LIEP secondary courses, \n• Student or parent surveys, \n• EL graduation rates, \n• ELs with disabilities, \n• Long Term ELs, \n• SLIFE, and\n• Formerly ELs (4.4+ on the ACCESS for ELLs assessment)."]
[]
[]
[]
[]
[null,"Page 22"]
[null,{"$f":"'Main Page'!$G$9","v":"2024-2025"},null,"School Division:",{"$f":"'Main Page'!$F$13","v":0},null,null,null,"Division Number:",{"$f":"'Main Page'!$F$14","v":" "},{"$f":"'Main Page'!$B$6","v":"Title III, Part A, Language Instruction for English Learners and Immigrant Students "}]
[null,"F.  PROGRAMS AND SERVICES FOR ELs AND THEIR FAMILIES (CONTINUED)"]
[]
[null,"Box 6:  ","If applicable describe the LIEP modifications to be introduced to address specific concerns identified in the evaluation process."]
[]
[]
[null,"Outreach to Limited English Proficient (LEP) Parents, Families, and Community Organizations:  The division must communicate meaningfully with LEP parents, families, and community organizations, and must notify LEP parents in a timely fashion in a language they can understand about programs, services, or activities that are made available to the general student population. "]
[]
[null,"Box 7:  ","Using Local and/or State Funds:  Describe how the division provides outreach to LEP parents and families to allow them the opportunity to participate in their student’s education.  Include how the division provides language assistance, such as third party vendors, contracted interpreters and translators, or telephone or digital language services, to parents who may require it."]
[]
[]
[null,"Page 23"]
[null,{"$f":"'Main Page'!$G$9","v":"2024-2025"},null,"School Division:",{"$f":"'Main Page'!$F$13","v":0},null,null,null,"Division Number:",{"$f":"'Main Page'!$F$14","v":" "},{"$f":"'Main Page'!$B$6","v":"Title III, Part A, Language Instruction for English Learners and Immigrant Students "}]
[null,"F.  PROGRAMS AND SERVICES FOR ELs AND THEIR FAMILIES (CONTINUED)"]
[]
[null,"Box 8:  ","Coordination of Service.  Describe the partnership between this program community, organizations, and other local, state and/or federal programs within the division.  Possible services could include: community partnerships, specialized programs, such as the gifted program, college and career readiness, special education, preschool, Title I, Title II, and Title IV. Provide data if available to support the effective outcomes of these collaborations. "]
[]
[]
[null,"Application ESSA Compliance Components using Title III Funds"]
[null,"Sec. 3115(g) Supplement Not Supplant:  Federal funds made available under this subgrant shall be used so as to supplement the level of Federal, State and local funds that, in the absence of such availability, would have been expended for programs for English learners and immigrant children and youth and in no case to supplant such Federal, state and local public funds. \n\nSec. 3115(c)(1-3) Required Subgrantee Activities using Title III Funds"]
[]
[null,"Box 9:  ","Title III-funded personnel, resources and initiatives: Describe how the LEA will use Title III funds to provide supplemental support to help ELs increase EL proficiency, meet the challenging State academic standards, and align with Virginia’s accountability plan.  Also, describe how the activities funded from Title III, Part A, are expected to increase student achievement and EL progress and proficiency.  The description must include a brief needs assessment with data, to demonstrate why the resources, materials, personnel, curriculum enhancement, coordination with other programs and other creative initiatives to be funded by Title III, will support an effective LIEP. This description must align with expenditures outlined in the Budget Summary and Detailed Budget Description in the Budget Tab."]
[]
[]
[null,"Page 24"]
[null,{"$f":"'Main Page'!$G$9","v":"2024-2025"},null,"School Division:",{"$f":"'Main Page'!$F$13","v":0},null,null,null,"Division Number:",{"$f":"'Main Page'!$F$14","v":" "},{"$f":"'Main Page'!$B$6","v":"Title III, Part A, Language Instruction for English Learners and Immigrant Students "}]
[null,"F.  PROGRAMS AND SERVICES FOR ELs AND THEIR FAMILIES (CONTINUED)"]
[]
[null,"Box 10:  ","Title III Professional Development: Describe how the LEA will use Title III funds to provide supplemental support for effective professional development (PD) to support: 1) classroom teachers, 2) principals, 3) support staff, 4) administrators, and 5) others. This description must include a brief needs assessment with data, to demonstrate how Title III funds will support effective PD to improve EL educational outcomes. This description must align with expenditures outlined in the Budget Summary and Detailed Budget Description in the Budget Tab."]
[]
[]
[null,"Box 11:  ","Title III Parent Engagement: Describe how the LEA will use Title III funds to provide supplemental support to parent, family and community engagement activities. Identify strategies used in coordination with other related programs, such as Title I, Part A, college and career readiness, and preschool programs. This description must include a brief needs assessment with data to demonstrate how Title III funds will support effective parent and family engagement to improve EL educational outcomes. This description must align with expenditures outlined in the Budget Summary and Detailed Budget Description in the Budget Tab."]
[]
[]
[null,"Page 25"]
[null,{"$f":"'Main Page'!$G$9","v":"2024-2025"},null,"School Division:",{"$f":"'Main Page'!$F$13","v":0},null,null,null,"Division Number:",{"$f":"'Main Page'!$F$14","v":" "},{"$f":"'Main Page'!$B$6","v":"Title III, Part A, Language Instruction for English Learners and Immigrant Students "}]
[null,"G.  TITLE III PROGRAM DETAILS"]
[]
[null,"Possible Subgrant Activities"]
[null,{"$f":"\"Sec. 3115(c)(1)(2)(3) – LEA Required Subgrant Activities Respond YES or NO using the dropdowns if Title III funds will be used this year (\" & 'Main Page'!G9& \") to support required activities. Refer to the Title III Budget Tab and the Title III Program Narrative Tab boxes 8-11 to support your responses.\"","v":"Sec. 3115(c)(1)(2)(3) – LEA Required Subgrant Activities Respond YES or NO using the dropdowns if Title III funds will be used this year (2024-2025) to support required activities. Refer to the Title III Budget Tab and the Title III Program Narrative Tab boxes 8-11 to support your responses."}]
[]
[null,"Box A."]
[null,"Required LEA Activities Under Title III Funding",null,null,null,null,null,null,null,null,null,null,null,{"$f":"\"Respond YES or NO using the dropdowns if Title III funds will be used this year (\" & 'Main Page'!G9 & \") to support required activities. \n\nRefer to the Title III Budget Tab and the Title III Program Narrative Tab boxes \n8-11 to support your response.\"","v":"Respond YES or NO using the dropdowns if Title III funds will be used this year (2024-2025) to support required activities. \n\nRefer to the Title III Budget Tab and the Title III Program Narrative Tab boxes \n8-11 to support your response."}]
[null,"If applicable, other activities and strategies that enhance or supplement LIEPs, including coordination and alignment across programs (as required under section 3115(c)(3)(B). (States are not required to enter counts for the last row if the State reports counts for 3115(c)(3)(A).)). (See Box 8)"]
[null,"Support the development and implementation of LIEPs (as required under section 3115(c)(1)). (See Box 9) "]
[null,"Provide professional development to teachers and other personnel serving ELs (as required under section 3115(c)(2)).  (See Box 10)"]
[null,"Provide parent, family, and community engagement activities (as required under section 3115(c)(3)(A)). (See Box 11) "]
[]
[null,"Optional LEA Activities Under Title III Funds"]
[null,"                                                                                                                                                                                                                                                                                                                                                                                                                                                                                                                                                                                                                                                                                                                                                                                                                                                                        "]
[]
[null,"Box B."]
[null,"Optional LEA Activities Under Title III Funds",null,null,null,null,null,null,null,null,null,null,null,{"$f":"\"Place an X to Show How Funds Will be Used This Year\n(\" & 'Main Page'!G9 & \") \"","v":"Place an X to Show How Funds Will be Used This Year\n(2024-2025) "}]
[null,"Upgrade program objectives and instructional strategies (section 3115(d)(1)). "]
[null,"Improve instruction for ELs through curricula, instructional materials, software, and assessment procedures (3115(d)(2)). "]
[null,"Provide tutorials, career and technical education (section 3115(d)(3)(A)). "]
[null,"Provide intensified supplemental instruction, including translated materials, interpreters, and translators (section 3115(d)(3)(B)). "]
[null,"Support LIEPs for preschool programs (section 3115(d)(4)).  "]
[null,"Implement strategies to improve ELP and academic achievement for ELs (section 3115(d)(5)). "]
[null,"Provide parent, family, and community engagement activities to support the education of ELs (section 3115(d)(6)). "]
[null,"Provide resources, including educational technology, electronic networks for materials, training, and communication, and incorporation of these resources into curricula and programs, to improve the instruction of ELs (section 3115(d)(7)). "]
[null,"Offer programs to help ELs achieve success in postsecondary education (section 3115(d)(8)). "]
[null,"Improve the instruction of ELs with disabilities (section 3115(d)(9)). "]
[null,"Other (section 3115(d)(9)). "]
[]
[null,"Sec.3201(7) of the ESEA – Identify the language(s) of instruction if your LEA provides the Transitional Bilingual, Dual Language or Two-way Immersion Programs . If you do not provide these LIEPs, mark Not Applicable (N/A).  "]
[]
[null,"Box C."]
[null,"LIEPs",null,null,null,null,null,null,null,null,null,null,null,"Language of Instruction\n(if applicable)"]
[null,"Transitional Bilingual"]
[null,"Dual Language or Two-way Immersion"]
[]
[null,"Page 26"]
[null,{"$f":"'Main Page'!$G$9","v":"2024-2025"},null,"School Division:",{"$f":"'Main Page'!$F$13","v":0},null,null,null,"Division Number:",{"$f":"'Main Page'!$F$14","v":" "},{"$f":"'Main Page'!$B$6","v":"Title III, Part A, Language Instruction for English Learners and Immigrant Students "}]
[null,"H.  MEASURABLE OBJECTIVES "]
[null,"Section 1"]
[null,"In Section 1 of the MOs, the LEA must address the MOs in Section 2 of the previous year's application and report whether 1) the LEA met the intended outcomes/targets; 2) reasons why the intended outcomes/targets were not met; and 3) how the MO will be modified, if applicable.  The LEA may also choose to use MOs from Section 1 of the application submitted two years previously. The LEA should include a description of the data analysis and process used to determine if the intended MO outcome/target was met.  Be sure to address all of the following:"]
[null,"1.","Specify the measurable objective from the previous application. "]
[null,"2.","Specify the application year (2021-2022 or 2022-2023)."]
[null,"3.","State the original MO goal and then describe the actual data results; and"]
[null,"4.","Describe the activities implemented and the actual progress made towards reaching the MO. "]
[]
[null,"Measurable Objective 1:"]
[]
[]
[null,"Measurable Objective 2:"]
[]
[]
[null,"Page 27"]
[null,{"$f":"'Main Page'!$G$9","v":"2024-2025"},null,"School Division:",{"$f":"'Main Page'!$F$13","v":0},null,null,null,"Division Number:",{"$f":"'Main Page'!$F$14","v":" "},{"$f":"'Main Page'!$B$6","v":"Title III, Part A, Language Instruction for English Learners and Immigrant Students "}]
[null,"H.  MEASURABLE OBJECTIVES (CONTINUED)"]
[]
[null,"Measurable Objective 3:"]
[]
[]
[null,"Measurable Objective 4:"]
[]
[]
[null,"Measurable Objective 5:"]
[]
[]
[null,"Page 28"]
[null,{"$f":"'Main Page'!$G$9","v":"2024-2025"},null,"School Division:",{"$f":"'Main Page'!$F$13","v":0},null,null,null,"Division Number:",{"$f":"'Main Page'!$F$14","v":" "},{"$f":"'Main Page'!$B$6","v":"Title III, Part A, Language Instruction for English Learners and Immigrant Students "}]
[null,"H.  MEASURABLE OBJECTIVES (CONTINUED)"]
[]
[null,"Section 2 - A minimum of 3 MOs for the 2024-2025 SY should be completed for Section 2"]
[null,"1.","State between three to five measurable objectives, that will support the goals of your LEA’s EL program. These objectives must be funded with identified Title III, Part A, federal funds as written in this application. \nIf state EL Progress targets were not met (Box 3b), you MUST identify an EL Progress target as a MO.  Below are some additional areas of focus that could be identified as LEA measurable objectives, where Title III funds are used to provide supplemental support:      \n     • EL Absenteeism targets.\n     • EL Graduation targets.\n     • EL Parent engagement targets.\n     • EL subgroup SOL targets.\n     • EL Professional development targets.\n     • LIEP curriculum development.\n     • Increasing EL participation in CTE.\nThis is not an exhaustive list and MOs should be based on an LIEP needs assessment. "]
[null,"2.","Describe the evidence-based research that supports the services and activities (programs, resources, people, and techniques) that will be implemented to achieve each objective. Review boxes 9, 10, and 11 in the Title III Program Tab to incorporate funding identified with measurable targets for the 2024-2025 SY. Be specific about how people, resources and professional development identified in the Budget Tab, are used to meet each measurable objective. \n\nWhat is a Measurable Objective?\nA measurable objective has four components:\n     1) Subject (Who is the target or focus?);\n     2) Behavior (What will be changed/improved/utilized?);\n     3) Specific criteria for assessing improvement, readiness, or achievement and tools to be used to measure effectiveness; and\n     4) Time period for performance or assessment."]
[]
[null,"Measurable Objective 1:"]
[]
[]
[null,"Effective research-based services and activities that will be implemented and supported by the requested funds to achieve the objective."]
[]
[]
[null,"Page 29"]
[null,{"$f":"'Main Page'!$G$9","v":"2024-2025"},null,"School Division:",{"$f":"'Main Page'!$F$13","v":0},null,null,null,"Division Number:",{"$f":"'Main Page'!$F$14","v":" "},{"$f":"'Main Page'!$B$6","v":"Title III, Part A, Language Instruction for English Learners and Immigrant Students "}]
[null,"H.  MEASURABLE OBJECTIVES (CONTINUED)"]
[]
[null,"Measurable Objective 2:"]
[]
[]
[null,"Effective research-based services and activities that will be implemented and supported by the requested funds to achieve the objective."]
[]
[]
[null,"Measurable Objective 3:"]
[]
[]
[null,"Effective research-based services and activities that will be implemented and supported by the requested funds to achieve the objective."]
[]
[]
[null,"Page 30"]
[null,{"$f":"'Main Page'!$G$9","v":"2024-2025"},null,"School Division:",{"$f":"'Main Page'!$F$13","v":0},null,null,null,"Division Number:",{"$f":"'Main Page'!$F$14","v":" "},{"$f":"'Main Page'!$B$6","v":"Title III, Part A, Language Instruction for English Learners and Immigrant Students "}]
[null,"H.  MEASURABLE OBJECTIVES (CONTINUED)"]
[]
[null,"Measurable Objective 4:"]
[]
[]
[null,"Effective research-based services and activities that will be implemented and supported by the requested funds to achieve the objective."]
[]
[]
[null,"Measurable Objective 5:"]
[]
[]
[null,"Effective research-based services and activities that will be implemented and supported by the requested funds to achieve the objective."]
[]
[]
[null,"Page 31"]

{"sheet":"IY","index":6,"n_rows":17,"n_cols":11,"rows_kept":17,"cut":false,"hidden":false,"merged":[[19,6,19,7],[19,8,19,9],[19,10,19,11],[14,1,14,16],[16,1,16,16],[17,6,17,7],[17,8,17,9],[17,10,17,11],[18,6,18,7],[18,8,18,9],[18,10,18,11],[13,1,13,16],[0,10,0,16],[1,1,1,16],[2,1,2,16],[3,1,3,16],[4,1,4,16],[5,1,5,16],[6,1,6,16],[7,1,7,16],[9,1,9,16],[10,1,10,16],[11,1,11,16]]}
[null,{"$f":"'Main Page'!$G$9","v":"2024-2025"},null,"School Division:",{"$f":"'Main Page'!$F$13","v":0},null,null,null,"Division Number:",{"$f":"'Main Page'!$F$14","v":" "},{"$f":"'Main Page'!$B$6","v":"Title III, Part A, Language Instruction for English Learners and Immigrant Students "}]
[null,"I.  IMMIGRANT CHILDREN & YOUTH (IY) FUNDS UNDER TITLE III"]
[]
[null,"Complete if IY funds are allocated"]
[]
[null,"Purpose of Immigrant Children and Youth (IY) Funds"]
[]
[null,"Under Section 3114 of the ESEA, Immigrant Children and Youth (IY) funds may be used for supplemental services to improve the academic achievement of IY students including activities that increase the knowledge and skills of teachers who serve IY students. All services provided to IY students  using IY funds must supplement, and not supplant, the services that must be provided to IY students under Title VI of the Civil Rights Act of 1964 (Title VI), the Equal Educational Opportunities Act of 1974 (EEOA), and other requirements, including those under State or local laws. Immigrant Children and Youth (IY) funds must solely be expended on programs and services for immigrant students or their families. "]
[]
[null,"Description of Program and Services for Immigrant Students "]
[null,"Describe how the division will use Immigrant Children and Youth (IY) funds to provide enhanced instructional opportunities specifically for immigrant students or their families."]
[]
[]
[null,"Describe how the division will evaluate the success of the enhanced instructional opportunities targeting immigrant students or their families."]
[]
[]
[null,"Page 32"]

{"sheet":"Private Schools","index":7,"n_rows":75,"n_cols":16,"rows_kept":75,"cut":false,"hidden":false,"merged":[[35,15,35,16],[36,15,36,16],[37,9,37,12],[37,13,37,14],[37,15,37,16],[66,9,66,12],[66,13,66,14],[66,15,66,16],[35,9,35,12],[36,9,36,12],[35,13,35,14],[36,13,36,14],[69,1,69,4],[69,5,69,6],[69,7,69,8],[69,9,69,12],[69,13,69,14],[69,15,69,16],[71,15,71,16],[71,5,71,6],[71,1,71,4],[68,1,68,4],[68,5,68,6],[68,7,68,8],[68,9,68,12],[68,13,68,14],[68,15,68,16],[67,1,67,4],[67,5,67,6],[67,7,67,8],[67,9,67,12],[67,13,67,14],[67,15,67,16],[66,1,66,4],[66,5,66,6],[66,7,66,8],[72,13,72,14],[71,13,71,14],[72,15,72,16],[74,1,74,16],[3,1,3,16],[7,2,7,16],[10,2,10,16],[11,10,11,16],[13,10,13,16],[8,10,8,16],[15,12,15,16],[30,2,30,16],[71,7,71,8],[71,9,71,12],[70,1,70,4],[70,5,70,6],[70,7,70,8],[70,9,70,12],[70,13,70,14],[70,15,70,16],[73,1,73,16],[0,10,0,16],[1,1,1,16],[2,1,2,16],[29,1,29,16],[28,10,28,16],[4,1,4,16],[9,1,9,16],[12,1,12,16],[14,1,14,16],[22,1,22,16],[23,2,23,16],[19,2,19,8],[19,9,19,15],[20,2,20,8],[20,9,20,15],[21,2,21,8],[21,9,21,15],[18,2,18,8],[18,9,18,15],[16,1,16,16],[6,1,6,16],[17,2,17,16],[13,3,13,8],[15,3,15,8],[65,1,65,4],[65,5,65,6],[65,7,65,8],[65,9,65,12],[65,13,65,14],[65,15,65,16],[64,1,64,4],[64,5,64,6],[64,7,64,8],[64,9,64,12],[64,13,64,14],[64,15,64,16],[63,1,63,4],[63,5,63,6],[63,7,63,8],[63,9,63,12],[63,13,63,14],[63,15,63,16],[62,1,62,4],[62,5,62,6],[62,7,62,8],[62,9,62,12],[62,13,62,14],[62,15,62,16],[61,1,61,4],[61,5,61,6],[61,7,61,8],[61,9,61,12],[61,13,61,14],[61,15,61,16],[60,1,60,4],[60,5,60,6],[60,7,60,8],[60,9,60,12],[60,13,60,14],[60,15,60,16],[59,1,59,4],[59,5,59,6],[59,7,59,8],[59,9,59,12],[59,13,59,14],[59,15,59,16],[58,1,58,4],[58,5,58,6],[58,7,58,8],[58,9,58,12],[58,13,58,14],[58,15,58,16],[57,1,57,4],[57,5,57,6],[57,7,57,8],[57,9,57,12],[57,13,57,14],[57,15,57,16],[56,1,56,4],[56,5,56,6],[56,7,56,8],[56,9,56,12],[56,13,56,14],[56,15,56,16],[55,1,55,4],[55,5,55,6],[55,7,55,8],[55,9,55,12],[55,13,55,14],[55,15,55,16],[54,1,54,4],[54,5,54,6],[54,7,54,8],[54,9,54,12],[54,13,54,14],[54,15,54,16],[53,1,53,4],[53,5,53,6],[53,7,53,8],[53,9,53,12],[53,13,53,14],[53,15,53,16],[52,1,52,4],[52,5,52,6],[52,7,52,8],[52,9,52,12],[52,13,52,14],[52,15,52,16],[51,1,51,4],[51,5,51,6],[51,7,51,8],[51,9,51,12],[51,13,51,14],[51,15,51,16],[50,1,50,4],[50,5,50,6],[50,7,50,8],[50,9,50,12],[50,13,50,14],[50,15,50,16],[49,1,49,4],[49,5,49,6],[49,7,49,8],[49,9,49,12],[49,13,49,14],[49,15,49,16],[48,1,48,4],[48,5,48,6],[48,7,48,8],[48,9,48,12],[48,13,48,14],[48,15,48,16],[47,1,47,4],[47,5,47,6],[47,7,47,8],[47,9,47,12],[47,13,47,14],[47,15,47,16],[46,1,46,4],[46,5,46,6],[46,7,46,8],[46,9,46,12],[46,13,46,14],[46,15,46,16],[45,1,45,4],[45,5,45,6],[45,7,45,8],[45,9,45,12],[45,13,45,14],[45,15,45,16],[44,1,44,4],[44,5,44,6],[44,7,44,8],[44,9,44,12],[44,13,44,14],[44,15,44,16],[43,1,43,4],[43,5,43,6],[43,7,43,8],[43,9,43,12],[43,13,43,14],[43,15,43,16],[42,1,42,4],[42,5,42,6],[42,7,42,8],[42,9,42,12],[42,13,42,14],[42,15,42,16],[41,1,41,4],[41,5,41,6],[41,7,41,8],[41,9,41,12],[41,13,41,14],[41,15,41,16],[40,1,40,4],[40,5,40,6],[40,7,40,8],[40,9,40,12],[40,13,40,14],[40,15,40,16],[39,1,39,4],[39,5,39,6],[39,7,39,8],[39,9,39,12],[39,13,39,14],[39,15,39,16],[38,1,38,4],[38,5,38,6],[38,7,38,8],[38,9,38,12],[38,13,38,14],[38,15,38,16],[37,1,37,4],[37,5,37,6],[37,7,37,8],[36,1,36,4],[36,5,36,6],[36,7,36,8],[35,1,35,4],[35,5,35,6],[35,7,35,8],[15,10,15,11],[8,3,8,8],[11,3,11,8],[5,14,5,16],[34,1,34,4],[34,5,34,6],[34,7,34,8],[33,1,33,16],[32,2,32,16],[27,1,27,15],[26,1,26,16],[31,1,31,16],[24,2,24,8],[24,9,24,15],[25,2,25,8],[25,9,25,15],[5,2,5,11],[5,12,5,13],[34,9,34,12],[34,15,34,16],[34,13,34,14]]}
[null,{"$f":"'Main Page'!$G$9","v":"2024-2025"},null,"School Division:",{"$f":"'Main Page'!$F$13","v":0},null,null,null,"Division Number:",{"$f":"'Main Page'!$F$14","v":" "},{"$f":"'Main Page'!$B$6","v":"Title III, Part A, Language Instruction for English Learners and Immigrant Students "}]
[null,"J.  PRIVATE SCHOOL PARTICIPATION"]
[]
[null,"Each year, the school division must contact all eligible private (nonprofit) schools and engage in meaningful consultation on the availability of equitable services funded by Title III, Part A. (ESEA Title VIII  Uniform Provisions, Part F, Subpart 1)."]
[]
[null,"1.",{"$f":"\"How many English Learners Level 1-4.3 received services in the public school division for the \" & 'Main Page'!G9 & \" school year?\"","v":"How many English Learners Level 1-4.3 received services in the public school division for the 2024-2025 school year?"}]
[]
[null,"2.","Are there eligible private schools in the school division's attendance area? Mark Yes if you have Private Schools, even if they refuse funds. "]
[null,null,null,"Yes (If yes, complete the remainder of this page.)",null,null,null,null,null,null,"No (If no, it is not necessary to complete the rest of this page.)"]
[]
[null,"3.","Place an \"X\" in the appropriate block(s) to indicate how private schools were notified of the availability of equitable services funded by Title III, Part A. (Copies of the notification must be kept on file for monitoring purposes.)"]
[null,null,null,"Regular Mail",null,null,null,null,null,null,"Certified Mail"]
[]
[null,null,null,"Telephone Calls",null,null,null,null,null,null,"Meetings"]
[]
[null,null,null,"Visits to the Private School",null,null,null,null,null,null,"Other (Please specify)"]
[]
[null,"4.","Determining Set-Asides (These fields will calculate automatically once enrollment figures have been entered)."]
[null,null,"a. Title III Budget",null,null,null,null,null,null,{"$f":"Budget!H34","v":0}]
[null,null,"b. Proportionate Share",null,null,null,null,null,null,{"$f":"(J19)*(H72/(M6+H72))","v":{"$error":"#DIV/0!"}}]
[null,null,"c. Additional set-aside for equitable services (if necessary)"]
[null,null,"d. Amount to use for set-aside calculations",null,null,null,null,null,null,{"$f":"J20+J21","v":{"$error":"#DIV/0!"}}]
[]
[null,"5.","Determining additional set-asides as a result of Transferability. These fields will calculate automatically once budget and enrollment figures have been entered."]
[null,null,"a. Title III Budget",null,null,null,null,null,null,{"$f":"SUM(Transferability!H35,Transferability!L35)","v":0}]
[null,null,"b. Proportionate Share",null,null,null,null,null,null,{"$f":"(J25)*(H72/(M6+H72))","v":{"$error":"#DIV/0!"}}]
[]
[null,"Page 33"]
[null,{"$f":"'Main Page'!$G$9","v":"2024-2025"},null,"School Division:",{"$f":"'Main Page'!$F$13","v":0},null,null,null,"Division Number:",{"$f":"'Main Page'!$F$14","v":" "},{"$f":"'Main Page'!$B$6","v":"Title III, Part A, Language Instruction for English Learners and Immigrant Students "}]
[null,"CALCULATION OF SET-ASIDES"]
[null,"6.","For the 2023-2024 award year, enter the estimated private school-set aside onto the Title III Budget tab under the “Budget for 2023-2024” column in the appropriate object codes on the “Private School Set-Aside” lines.  On the Budget Detail pages, list the amounts in the appropriate object codes in the “Private School Set-Aside for 2023-2024” lines."]
[]
[null,"7.","Complete the chart below:\n• In Column A, list all eligible private schools in the school division.\n• In column B, indicate the participation status of the listed private school(s) for the 2023-2024 award year, as a result of consultation.\n• In Column C, enter number of English learner students in private schools participating in services for the 2023-2024 award year.  Only complete if you answered yes in column B.\n• In Column D, enter the description of services provided for participating children.  Only complete if you answered yes in column B.\n• Column E will automatically calculate the value of services for the 2023-2024 award year."]
[]
[null,"A",null,null,null,"B",null,"C",null,"D",null,null,null,"E",null,"F"]
[null," Private Schools",null,null,null,{"$f":"\"Participation Staus for \n\" & 'Main Page'!G9 & \" Award Year? \n(Yes/No) \"","v":"Participation Staus for \n2024-2025 Award Year? \n(Yes/No) "},null,"Number of Identified Students",null,"Description of Services",null,null,null,{"$f":"\"Estimated Value of Services from\n\" & 'Main Page'!G9 & \" Title IIIA Budget, Per School\"","v":"Estimated Value of Services from\n2024-2025 Title IIIA Budget, Per School"},null,"Estimated Value of Additional Services from Transferability Funds"]
[null,null,null,null,null,null,null,null,null,null,null,null,null,{"$f":"ROUND(IF(F37=\"Yes\",H37*$D$73,0),2)","v":0},null,{"$f":"ROUND(IF(F37=\"Yes\",H37*$G$73,0),2)","v":0}]
[null,null,null,null,null,null,null,null,null,null,null,null,null,{"$f":"ROUND(IF(F38=\"Yes\",H38*$D$73,0),2)","v":0},null,{"$f":"ROUND(IF(F38=\"Yes\",H38*$G$73,0),2)","v":0}]
[null,null,null,null,null,null,null,null,null,null,null,null,null,0,null,0]
[null,null,null,null,null,null,null,null,null,null,null,null,null,0,null,0]
[null,null,null,null,null,null,null,null,null,null,null,null,null,0,null,0]
[null,null,null,null,null,null,null,null,null,null,null,null,null,0,null,0]
[null,null,null,null,null,null,null,null,null,null,null,null,null,0,null,0]
[null,null,null,null,null,null,null,null,null,null,null,null,null,0,null,0]
[null,null,null,null,null,null,null,null,null,null,null,null,null,0,null,0]
[null,null,null,null,null,null,null,null,null,null,null,null,null,0,null,0]
[null,null,null,null,null,null,null,null,null,null,null,null,null,0,null,0]
[null,null,null,null,null,null,null,null,null,null,null,null,null,0,null,0]
[null,null,null,null,null,null,null,null,null,null,null,null,null,0,null,0]
[null,null,null,null,null,null,null,null,null,null,null,null,null,0,null,0]
[null,null,null,null,null,null,null,null,null,null,null,null,null,0,null,0]
[null,null,null,null,null,null,null,null,null,null,null,null,null,0,null,0]
[null,null,null,null,null,null,null,null,null,null,null,null,null,0,null,0]
[null,null,null,null,null,null,null,null,null,null,null,null,null,0,null,0]
[null,null,null,null,null,null,null,null,null,null,null,null,null,0,null,0]
[null,null,null,null,null,null,null,null,null,null,null,null,null,0,null,0]
[null,null,null,null,null,null,null,null,null,null,null,null,null,0,null,0]
[null,null,null,null,null,null,null,null,null,null,null,null,null,0,null,0]
[null,null,null,null,null,null,null,null,null,null,null,null,null,0,null,0]
[null,null,null,null,null,null,null,null,null,null,null,null,null,0,null,0]
[null,null,null,null,null,null,null,null,null,null,null,null,null,0,null,0]
[null,null,null,null,null,null,null,null,null,null,null,null,null,0,null,0]
[null,null,null,null,null,null,null,null,null,null,null,null,null,0,null,0]
[null,null,null,null,null,null,null,null,null,null,null,null,null,0,null,0]
[null,null,null,null,null,null,null,null,null,null,null,null,null,0,null,0]
[null,null,null,null,null,null,null,null,null,null,null,null,null,0,null,0]
[null,null,null,null,null,null,null,null,null,null,null,null,null,0,null,0]
[null,null,null,null,null,null,null,null,null,null,null,null,null,0,null,0]
[null,null,null,null,null,null,null,null,null,null,null,null,null,0,null,0]
[null,null,null,null,null,null,null,null,null,null,null,null,null,0,null,0]
[null,null,null,null,null,null,null,null,null,null,null,null,null,0,null,0]
[null,"Total Identified Students",null,null,null,{"$f":"COUNTIF(F37:G71, \"yes\")","v":0},null,{"$f":"SUMIF(F37:G71, \"yes\", H37:I71)","v":0},null,"Total Private School Set-Asides",null,null,null,{"$f":"SUM(N37:O71)","v":0},null,{"$f":"SUM(P37:Q71)","v":0}]
[null,null,"Per Pupil Expenditure \n(calculated field):          ",{"$f":"(J22/H72)","v":{"$error":"#DIV/0!"}},null,"Per Pupil Expenditure for Transferability funds (calculated field):          ",{"$f":"(J26/H72)","v":{"$error":"#DIV/0!"}},null,null,null,null,null,null,{"$f":"\"Use this Figure for Private School Set-Asides in the \n\" & 'Main Page'!G9 & \" Budget\"","v":"Use this Figure for Private School Set-Asides in the \n2024-2025 Budget"},null,{"$f":"\"Use this Figure for Private School Set-Asides in the \n\" & 'Main Page'!G9 & \" Transferability Budget\"","v":"Use this Figure for Private School Set-Asides in the \n2024-2025 Transferability Budget"}]
[]
[null,"Page 34"]

{"sheet":"GEPA","index":8,"n_rows":10,"n_cols":11,"rows_kept":10,"cut":false,"hidden":false,"merged":[[8,1,8,16],[9,1,1048575,16],[0,0,9,0],[0,10,0,16],[0,17,9,17],[1,1,1,16],[2,1,2,16],[3,1,3,16],[4,1,4,15],[5,1,5,16],[6,1,6,16],[7,1,7,16]]}
[null,{"$f":"'Main Page'!$G$9","v":"2024-2025"},null,"School Division: ",{"$f":"'Main Page'!$F$13","v":0},null,null,null,"Division Number:  ",{"$f":"'Main Page'!$F$14","v":" "},{"$f":"'Main Page'!$B$6","v":"Title III, Part A, Language Instruction for English Learners and Immigrant Students "}]
[null,"K.  GENERAL EDUCATION PROVISIONS ACT (GEPA) SECTION 427"]
[]
[null,"Section 427 of the General Education Provisions Act (GEPA) requires applicants for federal funds to include in their applications a description of the steps the applicant will take to ensure equitable access to, and participation in, federally-assisted programs for students, teachers, and other program beneficiaries with special needs. The provision allows applicants discretion in developing the required description. The statute highlights six types of barriers that can impede equitable access or participation: gender, race, national origin, color, disability, or age. Based on local circumstances, the applicant should determine whether these or other barriers may prevent students, teachers, etc., from such access or participation in the federally-funded project or activity. The description in the application of steps to be taken to overcome these barriers need not be lengthy; the application may provide a clear and succinct description of how the applicant plans to address those barriers that are applicable to their circumstances."]
[]
[null,"Describe the steps the division will take to ensure equitable access to, and participation in, grant-funded programs for students, teachers, and other program beneficiaries with special needs as required by the General Education Provisions Act (GEPA) 427, OMB Control No. 1894-00045, Section 427."]
[]
[]
[]
[null,"Page 35"]

{"sheet":"Expenditure Descriptions","index":9,"n_rows":29,"n_cols":11,"rows_kept":29,"cut":false,"hidden":false,"merged":[[11,1,11,16],[0,10,0,16],[1,1,1,16],[2,1,2,16],[3,1,3,16],[4,1,4,16],[5,1,5,16],[6,1,6,16],[7,1,7,16],[8,2,8,16],[9,1,9,16],[10,2,10,16],[23,1,23,16],[12,2,12,16],[13,2,13,16],[14,1,14,16],[15,2,15,16],[16,1,16,16],[17,1,17,16],[18,2,18,16],[19,2,19,16],[20,1,20,16],[21,2,21,16],[22,2,22,16],[24,1,24,16],[25,2,25,16],[26,2,26,16],[27,1,27,16],[28,1,28,16]]}
[null,{"$f":"'Main Page'!$G$9","v":"2024-2025"},null,"School Division:",{"$f":"'Main Page'!$F$13","v":0},null,null,null,"Division Number:  ",{"$f":"'Main Page'!$F$14","v":" "},{"$f":"'Main Page'!$B$6","v":"Title III, Part A, Language Instruction for English Learners and Immigrant Students "}]
[null,"EXPENDITURE ACCOUNT DESCRIPTIONS"]
[]
[null,"These accounts are for budgeting and recording expenditures of the educational agency for activities under its control.  Below are definitions of the major expenditure categories.  The descriptions provided are examples only.   For further clarification on the proper expenditures of funds, contact your school division budget or finance office, the grant specialist in the Virginia Department of Education, or refer to the appropriate federal act."]
[]
[null,"OBJECT CODE DEFINITIONS:"]
[null,"(revised 4/8/21)"]
[]
[null,1000,"PERSONAL SERVICES – Includes all compensation for the direct labor of persons in the employment of the local government. Salaries and wages paid to employees for full‐ and part‐time work, including overtime, shift differential, and similar compensation. Includes payments for time not worked, including sick leave, vacation, holidays, jury duty, military leave, and other paid absences that are earned during the reporting period. \n\nFor the purposes of this report, the term “salaries” means all compensation including base wage. This also includes amounts paid through salary reduction plans, such as tax‐sheltered annuities and flexible benefit plans. Do not confuse this definition with the Virginia Retirement System (VRS) definition, which excludes supplements for retirement calculation purposes in some circumstances."]
[]
[null,2000,"EMPLOYEE BENEFITS – Job related benefits provided to employees as part of their total compensation. Fringe benefits include the employer’s portion of FICA, pensions, insurance (life, health, disability income, etc.) and employee\nallowances.\n\nNOTE: Fringe Benefits are a significant component of employee compensation and, like salaries and wages, are charged to the appropriate object of expenditure within each program. If possible, fringe benefit costs should be charged to the applicable educational program or activity on an ongoing basis. An alternative is to charge all fringe benefits to various benefit accounts. As part of the year‐end closing process, these accounts are closed, and all costs are allocated to the appropriate educational program or activity. The following methods are suggested for allocating such cost at year‐end. If these methods do not provide reasonable allocations based on circumstances within the school division, then the school division should use another reasonable allocation method. Consistency in application should be maintained at all times.\n\n1) Allocation by percentage of payroll dollars\n2) Allocation by Head Count\n3) Direct to Program or Activity"]
[]
[null,3000,"PURCHASED/CONTRACTUAL SERVICES – Services acquired from outside sources (i.e., private vendors, public authorities, or other governmental entities). Purchase of the service is on a fee basis or fixed time contract basis. Payments for rentals and utilities are not included in this account description. Allowable payments would be to individual or firms that are independent contractors and not employees of the grantee or sub‐grantee organization. The word honorarium is sometimes used to characterize such payments; the term “fee” is preferred.\n\nFood Purchases – Prepared meals, working meals, and/or catered services purchased through a vendor are included in this object code. Reimbursement is capped at the per diem rate for the meal listed according to the state travel regulations. Examples for this object code include meals provided during day‐long professional development sessions, or meals provided to support attendance at family engagement activities. Food purchased from catering services and restaurants such as Pizza Hut, Panera Bread, and Subway is included in this object code.\n\nTransportation Services Public Carriers – Payments to public carriers for transportation of pupils on vehicles that are used by the public. Include payments for pupils transported in intra‐city transit buses, taxicabs, airplanes, and intercity/interstate passenger buses.\n\nTransportation Services Private Carriers – Payments (either cash or tokens) to parents for transportation of pupils in lieu of providing transportation on school buses. Include allowable payments to parents for pupils attending public, private, and non‐sectarian schools. Include costs associated with transporting special education students in school board‐owned vehicles to and from school.\n\nTransportation Services by Contract – Payments to private owners of school buses who contract with the school board to transport pupils to and from public schools. Include payments to owners of private vehicles that contract with the school board to transport pupils to and from designated public and private schools.\n"]
[null,null,"Purchase of Service from Other Governmental Entities – Payments for services purchased from other governmental entities (i.e., other local governments, public authorities, state agencies, and other LEAs) on a contract/fee basis. Tuition payments to other local governments for a jointly operated center are not included here but are reported under “Payments to Joint Operations” (object code 7000).\n\nTuition Paid – Other Divisions In‐State, Tuition Paid – Other Divisions Out‐of‐State, and Tuition Paid – Private Schools are included in this object code."]
[]
[null,4000,"INTERNAL SERVICES – Charges from an Internal Service Fund to other functions/activities/elements of the local government for the use of intergovernmental services, such as data processing, automotive/motor pool, central purchasing/central stores, print shop, and risk management. These services are provided by internal services within the School District and possibly the county but not a vendor.\n\nFood Purchases – Food purchased from the food services department of a school division or sub‐grantee equivalent to support professional development or family engagement events is included in this object code. For example, internal expenses for school cafeterias to provide meals to support attendance at family engagement activities are included in this object code."]
[]
[null,"Page 36"]
[null,5000,"OTHER CHARGES – Include expenditures that support the use of programs. Includes expenditures that support the program, including utilities (maintenance and operation of plant), staff/administrative/consultant travel, office\nphone charges, training, leases/rental, indirect cost, and other.\n\nFood Purchases – Food Purchases under this object code is restricted to food purchases related to travel reimbursement for meals only (see Travel below). If the sub‐recipient’s internal travel policies conform to state travel regulations, reimbursement is allowable at per diem meals rates according to state travel regulations. If the sub‐recipient’s internal travel policies require reimbursement for the cost of each meal, reimbursement is capped at the per diem rate for the meal listed according to the state travel regulations. Sub‐recipients must elect either meals per diem or per meals costs as their internal travel policy.\n\nTelecommunications – Include expenditures for recurring telecommunications services for the use of on‐line computer technology (e.g., telephone/telecommunications line charges). Telephone charges for line service for Internet connectivity and the Electronic Classroom program. Package pricing from a vendor for Accident or cyber‐risk insurance, LTE mobile carrier data plans, Internet access via an Internet Service Provider. Package pricing from a vendor for hardware, content filtering, data plans, extended warranty services and other components of the package when no breakout pricing is available.\n\nUtilities – Payments for heat, electricity, water, and sewer services regardless of whether the service is provided by a private enterprise authority or an enterprise fund operated by a local government.\n\nCommunications – Payments for postal, messenger, and telecommunications services, typically office voice telephone charges. (Telecommunication costs directly related to technology uses should be coded\nunder 6000.) In addition, office telephone charges would be coded under this code. \n\nInsurance – Payments for insurance except those that relate to personal services (i.e., hospitalization, group life, worker’s compensation, unemployment).\n"]
[null,null,"Leases and Rentals – Includes payments for leases that are not capitalized and rental of land, structures, and equipment. Do not include payments made under a lease‐purchase agreement.\n\nTravel – includes payments for travel reimbursement for staff/administrative/consultant travel. These are travel costs that are being reimbursed directly to travelers. These costs may include lodging, mileage, meals, and incidentals as allowable according to state travel regulations or documented sub‐recipient internal travel policies. If the sub‐recipient does not have documented internal travel policies, state travel regulations will prevail.\n\nContributions to Other Entities – Includes payments to other governmental entities or community organizations that are not related to the direct purchase of a service on a fee basis (which is reported under object code 3000) or payments to joint operations (which are reflected under object code 7000).\n\nPublic Assistance Payments – Payments to individuals for public assistance programs (general government use only).\n\nMiscellaneous Other Charges – Includes expenditures that support the program, including indirect costs and other costs."]
[]
[null,6000,"MATERIALS AND SUPPLIES – Includes articles and commodities that are consumed or materially altered when used and minor equipment that is not capitalized. This includes any equipment purchased under $5,000, unless the LEA has set a lower capitalization threshold. Therefore, computer equipment under $5,000 would be reported in “materials and supplies.”\n\nFood Purchases – Food items purchased from a grocery store or its equivalent for snacks or breaks is included in this object code. Examples include bottled water, granola bars, cookies, and fruit purchased from a store such as Wal‐Mart, Food Lion, Costco, etc. Prepared meals is not included in this object code; see object code 3000 for prepared/working/catered meals as purchased/contracted services. \n\nVehicle and Powered Equipment Fuels – Gasoline, lubricating oils, or such other fuel used in the operation of vehicles and powered equipment (e.g., lawnmowers) purchased from private sources or governmental agencies.\n\nVehicle and Powered Equipment Supplies – Tires, spark plugs, batteries, and chains used in the operation of vehicles and powered equipment purchased from private sources or governmental agencies.\n\nTextbooks – All textbooks and workbooks purchased to be used in the classroom.\n\nInstructional Materials – Books (not textbooks) and other materials.\n"]
[null,null,"Technology Software/On‐line Content – Include expenditures for videodiscs and computer programs used in the classroom for instructional purposes, operating system software (i.e., standalone software, not software that is pre‐installed and included in hardware costs), application software, and on‐line or downloadable software and content. Include expenditures for both additions and replacement.\n\nNon‐Capitalized Technology Hardware – Include expenditures for hardware or classroom technology equipment that is not capitalized.\n\nNon‐Capitalized Technology Infrastructure – Include expenditures for technology infrastructure that is not capitalized."]
[]
[null,"Page 37"]
[null,8000,"CAPITAL OUTLAY – Note: Indirect cost cannot be claimed against capital outlay and equipment.\n\nOutlays that result in the acquisition of or additions to fixed assets. Capital Outlay includes the purchase of fixed assets both replacement and/or additional.\n\nCapital Outlay Replacement\n\nTechnology – Hardware Replacements – Include capital outlay for replacement of hardware or classroom technology equipment. (For further clarification on which expenditures should be included in this object code, see the “Special Note” below).\n\nTechnology – Infrastructure Replacements – Include capital outlay for replacement of technology infrastructure. (For further clarification on which expenditures should be included in this object code, see the “Special Note” below).\n\nCapital Outlay Additions – Include machinery, equipment, furniture, fixtures, communications equipment, motor vehicles, etc. that are capitalized.\n\nTechnology – Hardware Additions – Include capital outlay for additional hardware or classroom technology equipment. (For further clarification on which expenditures should be included in this object code, see the “Special Note” below).\n\nTechnology – Infrastructure Additions – Include capital outlay for additional technology infrastructure. (For further clarification on which expenditures should be included in this object code, see the “Special Note” below).\n"]
[null,null,"Special Note ‐ Classification of Hardware and Infrastructure Expenditures:\n\nReport expenditures under technology “hardware” for computers, associated peripheral equipment, and other specialized technology equipment. Computers include desktop and laptop machines, handheld computers (i.e., Personal Digital Assistants or PDAs), and mainframe machines. Peripheral equipment includes devices attached to computers, such as monitors, keyboards, disk drives, modems, printers, scanners, cameras and speakers, etc.\n\nReport other specialized computer devices under technology “hardware” such as fax‐back and voice‐mail resources; videoconferencing and other distance education tools, including satellite transmitters and receivers; cable‐based receivers; and modem or codec‐based video equipment; projection devices, from transparent and opaque projectors to video monitors; and graphing calculators and other specialized computational aids.\n\nReport expenditures under technology “infrastructure” for equipment and devices that enable the linking of computers or video hardware to networks (such as routers, hubs, switches, access servers, modems, or codecs). Infrastructure also refers to cabling installations, whether wire, fiber optic, or coaxial, as well as electrical capacity expansion or HVAC upgrades to support networks. In wireless networking systems, include receivers and transmitters under infrastructure."]
[]
[null,"Page 38"]

{"sheet":"General Assurances","index":10,"n_rows":45,"n_cols":11,"rows_kept":45,"cut":false,"hidden":false,"merged":[[0,10,0,16],[10,1,10,16],[1,1,1,16],[3,1,3,4],[4,1,4,4],[5,1,5,4],[3,5,3,16],[4,5,4,16],[5,5,5,16],[2,1,2,16],[6,1,6,4],[9,5,9,16],[25,4,25,16],[26,4,26,16],[12,2,12,16],[23,4,23,16],[24,4,24,16],[13,2,13,16],[19,4,19,16],[20,4,20,16],[21,4,21,16],[49,6,49,7],[49,8,49,9],[49,10,49,11],[44,1,44,16],[46,6,46,7],[46,8,46,9],[46,10,46,11],[47,6,47,7],[47,8,47,9],[47,10,47,11],[48,6,48,7],[48,8,48,9],[48,10,48,11],[28,4,28,16],[29,4,29,16],[6,5,6,16],[7,5,7,16],[22,4,22,16],[7,1,7,4],[8,1,8,4],[9,1,9,4],[8,5,8,16],[11,1,11,16],[16,3,16,16],[17,3,17,16],[15,2,15,16],[27,4,27,16],[14,2,14,16],[18,4,18,16],[43,1,43,16],[30,4,30,16],[31,4,31,16],[36,5,36,16],[38,3,38,16],[32,4,32,16],[41,2,41,16],[42,2,42,16],[37,4,37,16],[34,5,34,16],[35,5,35,16],[39,3,39,16],[40,3,40,16],[33,4,33,16]]}
[null,{"$f":"'Main Page'!$G$9","v":"2024-2025"},null,"School Division:",{"$f":"'Main Page'!$F$13","v":0},null,null,null,"Division Number:",{"$f":"'Main Page'!$F$14","v":" "},{"$f":"'Main Page'!$B$6","v":"Title III, Part A, Language Instruction for English Learners and Immigrant Students "}]
[null,"GENERAL ASSURANCES"]
[]
[null,"Title I, Part A",null,null,null,"Improving Basic Programs Operated by Local Educational Agencies"]
[null,"Title I, Part C",null,null,null,"Education of Migratory  Children"]
[null,"Title I, Part D, Subpart 2",null,null,null,"Prevention and Intervention Programs for Children and Youth Who Are Neglected, Delinquent, or At-Risk"]
[null,"Title II, Part A",null,null,null,"Supporting Effective Instruction"]
[null,"Title III, Part A ",null,null,null,"Language Instruction for English Learners and Immigrant Students"]
[null,"Title IV, Part A",null,null,null,"Student Support and Academic Enrichments Grants"]
[null,"Title V, Part B, Subpart 2",null,null,null,"Rural and Low-Income School Program"]
[]
[null,"The school division/grantee assures:"]
[null,"I.","Each program will be administered in accordance with all applicable statutes, regulations, program plans, and applications;"]
[null,"II.","The control of funds provided under each program and title to property acquired with program funds will be in a public agency, a nonprofit private agency, institution, organization, or an Indian tribe, if the law authorizing the program provides for assistance to those entities;"]
[null,"III.","The public agency, nonprofit private agency, institution, organization, or Indian tribe, will administer the funds and property to the extent required by the authorizing statutes;"]
[null,"IV.","It will adopt and use proper methods of administering each program, including - "]
[null,null,"A.","The enforcement of any obligations imposed by law on agencies, institutions, organizations, and other recipients responsible for carrying out each program;"]
[null,null,"B.","The correction of deficiencies in program operations that are identified through audits, monitoring, or evaluation and that:"]
[null,null,null,"1.","It will maintain fiscal effort in support of free public education;"]
[null,null,null,"2.","It will provide services with state and local funds that are at least comparable to services provided in schools and areas not receiving special federal funds; "]
[null,null,null,"3.","The majority of the resources in the school division are derived from nonfederal funds;"]
[null,null,null,"4.","It is in compliance with the requirements in Title VIII, Section 8524 and has no policy that prevents, or otherwise denies participation in, constitutionally protected prayer in public elementary and secondary schools;"]
[null,null,null,"5.","It will comply with the audit requirements for each program; "]
[null,null,null,"6.","The federal funds are used to supplement, not supplant regular nonfederal funds;"]
[null,null,null,"7.","It will cooperate in carrying out any evaluation of each program conducted by or for the state educational agency, the Secretary, or other federal officials;\n\n"]
[null,null,null,"8.","It will use such fiscal control and fund accounting procedures as will ensure proper disbursement of, and accounting for, federal funds paid to the applicant under each program;"]
[null,null,null,"9.","It will submit such reports to the state educational agency (which shall make the reports available to the Governor) and the Secretary of Education as the state educational agency and Secretary may require to enable the state educational agency and the Secretary to perform their duties under each program;\n"]
[null,null,null,"10.","It will maintain such records for five years, provide such information, and afford such access to the records as the state educational agency (after consultation with the Governor) or the Secretary may reasonably require to carry out the state educational agency’s or the Secretary’s duties; "]
[null,null,null,"11.","It consulted with teachers, school administrators, parents, members of the community, nonprofit organizations and other interested parties in the development of this plan;"]
[null,null,null,"12.","It afforded a reasonable opportunity for public comment on the plan or application and considered such comment before the application was submitted;"]
[null,null,null,"13.","It will provide information in an understandable and uniform format and, to the extent practicable, be provided in a language that the parents can understand;"]
[null,null,null,"14.","It is in compliance with the requirement regarding equal access to public school facilities as specified in Title VIII, Section 8525;"]
[null,null,null,"15.","It is in compliance with the requirement regarding the prohibition on aiding and abetting sexual abuse as specified in Title VIII, Section 8546;"]
[null,null,null,"16.","It will comply with the other application requirements outlined in"]
[null,null,null,null,null,"Section 8501. Private School Children;"]
[null,null,null,null,null,"Section 8502. Bypass; and"]
[null,null,null,null,null,"Section 8521. Maintenance of Effort under Title VIII –Other Provisions;"]
[null,null,null,"17.","It will ensure that funds are expended in accordance with the school division’s approved application or amended application.  In the event the local division needs to expend funds in any manner other than stipulated in the approved application, the plan must be amended using the amendment process provided by the Department of Education.  The application must be amended before funds can be expended for activities not approved in the original application;"]
[null,null,"C.","It will collect and disseminate information collected under Section 1111 in a manner that protects the privacy of individuals;\n"]
[null,null,"D.","It will adhere to the provisions of the Federal Funding Transparency and Accountability Act (FFATA), and will obtain a valid DUNS number prior to applying for funds;"]
[null,null,"E.","It will comply with the provisions of 2 CFR part 200 section 200.116, which prohibits the purchase of certain telecommunications and video surveillance services or equipment as described in Public Law 115-232, section 889."]
[null,"V.","It will comply with Section 22.1-277.07, of the Code of Virginia that requires the expulsion for one year of any student determined to have brought a firearm to school.  A description of each incident, the name of the school concerned, the number of students expelled from each school, and the type of firearm used in each instance of expulsion will be reported to the Virginia Department of Education in compliance with provisions under Section 8561 (Gun-Free Schools Act).  This agency has a policy that requires referral to the criminal justice or the juvenile delinquency system of any student who brings a firearm or weapon to school; and"]
[null,"VI.","It will participate, if selected, in the state National Assessment of Educational Progress in 4th and 8th grade reading and mathematics carried out under Section 303 of the National Assessment of Educational Progress Act."]
[]
[null,"Page 39"]

{"sheet":"Program Specific Assurances","index":11,"n_rows":38,"n_cols":11,"rows_kept":38,"cut":false,"hidden":false,"merged":[[0,10,0,16],[25,10,25,16],[27,3,27,16],[31,2,31,16],[28,2,28,16],[26,1,26,16],[24,1,24,16],[20,5,20,16],[21,6,21,16],[22,6,22,16],[23,5,23,16],[15,4,15,16],[16,4,16,16],[17,4,17,16],[18,4,18,16],[19,4,19,16],[41,6,41,7],[41,8,41,9],[41,10,41,11],[42,6,42,7],[42,8,42,9],[42,10,42,11],[40,6,40,7],[40,8,40,9],[40,10,40,11],[29,2,29,16],[30,2,30,16],[36,1,36,16],[37,1,37,16],[39,6,39,7],[39,8,39,9],[39,10,39,11],[32,2,32,16],[33,2,33,16],[34,2,34,16],[35,2,35,16],[13,4,13,16],[14,4,14,16],[1,1,1,16],[2,1,2,16],[3,1,3,16],[5,2,5,16],[6,2,6,16],[7,1,7,16],[11,3,11,16],[12,4,12,16],[8,2,8,16],[9,2,9,16],[10,2,10,16]]}
[null,{"$f":"'Main Page'!$G$9","v":"2024-2025"},null,"School Division:",{"$f":"'Main Page'!$F$13","v":0},null,null,null,"Division Number:",{"$f":"'Main Page'!$F$14","v":" "},{"$f":"'Main Page'!$B$6","v":"Title III, Part A, Language Instruction for English Learners and Immigrant Students "}]
[null,"PROGRAM SPECIFIC ASSURANCES"]
[]
[null,"Title III funds cannot be used for academic programs and LIEP services provided to ELs that are required under other local, state, and federal laws to include Title VI of the Civil Rights Act of 1964, the Equal Educational Opportunities Act of 1974 (EEOA). The division will comply with the supplement, not supplant, provisions as described below: \n"]
[]
[null,null,"Section 3115"]
[null,null,"(g) SUPPLEMENT, NOT SUPPLANT - Federal funds made available under this subpart shall be used so as to supplement the level of federal, state, and local public funds that, in the absence of such availability, would have been expended for programs for English learners and immigrant children and youth and in no case to supplant such Federal, State, and local public funds."]
[null,"The school division/grantee assures:"]
[null,"I.","It will include in the plan under ESEA Section 3114 a certification that all teachers in any LIEP are, or will be, funded under this part are fluent in English and any other language used for instruction, including having written and oral communications skills;"]
[null,"II.","All ELs will be identified within 30 days of enrollment"]
[null,"III.","It will comply with the parental notification requirements as described below:"]
[null,null,"A.","Each eligible entity using funds provided under this title to provide a LIEP shall, not later than 30 days after the beginning of the school year, inform a parent or the parents of ELs identified for participation in, or participating in, such program of — "]
[null,null,null,"1.","the reasons for the identification of their child as an EL and in need of placement in a LIEP;"]
[null,null,null,"2.","the child’s level of English proficiency, how such level was assessed, and the status of the child’s academic achievement;"]
[null,null,null,"3.","the method of instruction used in the program in which their child is, or will be, participating, and the methods of instruction used in other available programs, including how such programs differ in content, instruction goals, and use of English and a native language in instruction;"]
[null,null,null,"4.","how the program in which their child is, or will be participating, will meet the educational strengths and needs of the child;"]
[null,null,null,"5.","how such program will specifically help their child learn English, and meet age appropriate academic achievement standards for grade promotion and graduation;"]
[null,null,null,"6.","the specific exit requirements for such program, the expected rate of transition from such program into classrooms that are not tailored for ELs, and the expected rate of graduation from secondary school for such program if funds under this title are used for children in secondary schools;"]
[null,null,null,"7.","in the case of a child with a disability, how such program meets the objectives of the individualized education program of the child; and"]
[null,null,null,"8.","information pertaining to parental rights that includes written guidance — "]
[null,null,null,null,"a. ","detailing —"]
[null,null,null,null,null,"(i).","the right that parents have to have their child immediately removed from such program upon their request; and"]
[null,null,null,null,null,"(ii).","the options that parents have to decline to enroll their child in such program or to choose another program or method of instruction, if available; and"]
[null,null,null,null,"b.","assisting parents in selecting among various programs and methods of instruction, if more than one program or method is offered by the eligible entity."]
[null,"Page 38"]
[null,{"$f":"'Main Page'!$G$9","v":"2024-2025"},null,"School Division:",{"$f":"'Main Page'!$F$13","v":0},null,null,null,"Division Number:",{"$f":"'Main Page'!$F$14","v":" "},{"$f":"'Main Page'!$B$6","v":"Title III, Part A, Language Instruction for English Learners and Immigrant Students "}]
[null,"PROGRAM SPECIFIC ASSURANCES"]
[null,null,"B.","RECEIPT OF INFORMATION- The information required to be provided under subsection (a) to a parent shall be provided in an understandable and uniform format and, to the extent practicable, in a language that the parent can understand."]
[null,"IV.","It will comply with the Parents Right-to-Know requirements in ESEA Section 1112(e);"]
[null,"V.","It will annually assess the English proficiency of all ELs participating in programs funded under this part;"]
[null,"VI."," It will base its proposed plan on effective research on teaching ELs;"]
[null,"VII.","It will ensure that the programs will enable children to speak, read, write, and comprehend the English language and meet challenging state academic content and student academic achievement standards; "]
[null,"VIII."," It will not violate any state law, including state constitutional law, regarding the education of ELs, consistent with ESEA Sections 3125 and 3126; "]
[null,"IX.","It consulted with teachers, researchers, school administrators and other school personnel, parents and family members, community members, public or private entities, institutions of higher education, and other stakeholders in developing the Title III local plan described in the program overview section;"]
[null,"X.","It will, if applicable, coordinate activities and share relevant data under the plan with local Head Start agencies, including migrant and seasonal Head Start agencies, and other early childhood education providers; and"]
[null,"XI.","Immigrant children and youth (IY) funds will be specifically targeted to eligible immigrant students and their families.\n"]
[]
[null,"Page 40"]

{"sheet":"Prefills","index":12,"n_rows":144,"n_cols":52,"rows_kept":144,"cut":false,"hidden":true,"merged":[[30,7,30,8],[1,3,1,5],[0,3,0,5],[22,7,22,8],[3,3,3,5],[2,3,2,5],[2,39,2,40],[6,39,6,46],[9,49,10,49],[18,39,19,39],[18,40,19,42],[3,39,4,46],[25,40,25,42],[26,40,26,42],[27,40,27,42],[28,40,28,42],[20,40,20,42],[21,40,21,42],[22,40,22,42],[23,40,23,42],[24,40,24,42]]}
["Allocation Total Column:",null,"x",{"$f":"SUM(F6:F144)","v":15852831.149999997},null,null,7,8,9,10,11,12,13,14,15,16,17,18,19,20,21,22,23,24,25,26,27,28,29,30,31,32,33,34,35,36,37,38,39,40,41,42,43,44,45,46,47,48,49,50]
["Allocation Check Column: ",null,null,{"$f":"15852831.15-D1","v":0}]
[null,{"$f":"SUBTOTAL(3,B6:B144)","v":139},null,"Title III, Part A (IY + EL)",null,null,null,null,null,null,null,null,null,null,null,null,null,null,null,null,null,null,null,null,null,null,null,null,null,null,null,null,null,null,null,null,null,null,null,"Anchor Cell is AN3"]
["Project Group ID:",null,null,"6",null,null,null,null,null,null,null,null,null,null,null,null,null,null,null,null,null,null,null,null,null,null,null,null,null,null,null,null,null,null,null,null,null,null,null,"Change Colors on all the sheets "]
["Division","Div Num",null,"Div Num","Consolidated App Flag","Allocation"]
["Accomack County Public Schools",1,null,1,null,84988.17]
["Albemarle County Public Schools",2,null,2,null,166123.46,null,"Funding Source",null,null,null,null,null,null,null,null,null,null,null,null,null,null,null,null,null,null,null,null,null,null,null,null,null,null,null,null,null,null,null,"Color and Color# (Number)"]
["Alexandria City Public Schools",101,null,3,null,null,null,"Title II, Part A, Transferability"]
["Alleghany Highlands Public Schools",3,null,4,null,null,null,"Title IV, Part A, Transferability",null,null,null,null,null,null,null,null,null,null,null,null,null,null,null,null,null,null,null,null,null,null,null,null,null,null,null,null,null,null,null,1,2,3,4,5,6,7,8,null,"Step 1.   Go to \"Narrative\" TAB and click on a CELL with LAST Year's   Blank COLOR"]
["Amelia County Public Schools",4,null,5,null,null,null,null,null,null,null,null,null,null,null,null,null,null,null,null,null,null,null,null,null,null,null,null,null,null,null,null,null,null,null,null,null,null,null,9,10,11,12,13,14,15,16,null,null,null,null,"Press the Format Painter ICON.  Click on the Cell AX10.    (Old Color should show)"]
["Amherst County Public Schools",5,null,6,null,null,null,"Title IIIA Categories",null,null,null,null,null,null,null,null,null,null,null,null,null,null,null,null,null,null,null,null,null,null,null,null,null,null,null,null,null,null,null,17,18,19,20,21,22,23,24]
["Appomattox County Public Schools",6,null,7,null,695219.54,null,"EL Subgrant",null,null,null,null,null,null,null,null,null,null,null,null,null,null,null,null,null,null,null,null,null,null,null,null,null,null,null,null,null,null,null,25,26,27,28,29,30,31,32]
["Arlington County Public Schools",7,null,8,null,30218.010000000002,null,"IY Subgrant",null,null,null,null,null,null,null,null,null,null,null,null,null,null,null,null,null,null,null,null,null,null,null,null,null,null,null,null,null,null,null,33,34,35,36,37,38,39,40,null,null,null,"Step 2.   Pick a New COLOR# for this year Type the number into AE21(Color B:)"]
["Augusta County Public Schools",8,null,9,null,null,null,null,null,null,null,null,null,null,null,null,null,null,null,null,null,null,null,null,null,null,null,null,null,null,null,null,null,null,null,null,null,null,null,41,42,43,44,45,46,47,48,null,null,null,"Step 3.   Refresh the color chart to the left by pessing \"Refresh\""]
["Bath County Public Schools",9,null,10,null,12512.15,null,null,null,null,null,null,null,null,null,null,null,null,null,null,null,null,null,null,null,null,null,null,null,null,null,null,null,null,null,null,null,null,null,49,50,51,52,53,54,55,56]
["Bedford County Public Schools",10,null,11]
["Bland County Public Schools",11,null,12,null,null,null,"Yes or No"]
["Botetourt County Public Schools",12,null,13,null,null,null,"Yes"]
["Bristol City Public Schools",102,null,14,null,null,null,"No",null,null,null,null,null,null,null,null,null,null,null,null,null,null,null,null,null,null,null,null,null,null,null,null,null,null,null,null,null,null,null,"Range for Color Change","Tab Name",null,null,null,null,"Color #"]
["Brunswick County Public Schools",13,null,15,null,null,null,null,null,null,null,null,null,null,null,null,null,null,null,null,null,null,null,null,null,null,null,null,null,null,null,null,null,null,null,null,null,null,null,null,null,null,null,null,"Old Color A:",20,null,null,-4142]
["Buchanan County Public Schools",14,null,16,null,25378.41,null,null,null,null,null,null,null,null,null,null,null,null,null,null,null,null,null,null,null,null,null,null,null,null,null,null,null,null,null,null,null,null,1,"A:R","Title III Budget",null,null,null,"New Color B:",40,null,null,null,null,null,"Step 4.   Refresh the color from Color A:  to Color B: for all Tabs listed"]
["Buckingham County Public Schools",15,null,17,null,14636.85,null,null,null,null,null,null,null,null,null,null,null,null,null,null,null,null,null,null,null,null,null,null,null,null,null,null,null,null,null,null,null,null,2,"A:S","Transferability"]
["Buena Vista City Public Schools",103,null,18,null,15581.16,null,null,null,null,null,null,null,null,null,null,null,null,null,null,null,null,null,null,null,null,null,null,null,null,null,null,null,null,null,null,null,null,3,"A:R","Title III Program"]
["Campbell County Public Schools",16,null,19,null,null,null,null,null,null,null,null,null,null,null,null,null,null,null,null,null,null,null,null,null,null,null,null,null,null,null,null,null,null,null,null,null,null,4,"A:Q","IY"]
["Caroline County Public Schools",17,null,20,null,null,null,null,null,null,null,null,null,null,null,null,null,null,null,null,null,null,null,null,null,null,null,null,null,null,null,null,null,null,null,null,null,null,5,"A:Q","Private Schools"]
["Carroll County Public Schools",18,null,21,null,720145.79,null,null,null,null,null,null,null,null,null,null,null,null,null,null,null,null,null,null,null,null,null,null,null,null,null,null,null,null,null,null,null,null,6,"A:R","GEPA"]
["Charles City County Public Schools",19,null,22,null,11331.76,null,null,null,null,null,null,null,null,null,null,null,null,null,null,null,null,null,null,null,null,null,null,null,null,null,null,null,null,null,null,null,null,7,"A:R","Expenditure Descriptions"]
["Charlotte County Public Schools",20,null,23,null,null,null,null,null,null,null,null,null,null,null,null,null,null,null,null,null,null,null,null,null,null,null,null,null,null,null,null,null,null,null,null,null,null,8,"A:R","General Assurances"]
["Charlottesville City Public Schools",104,null,24,null,158859.63999999998,null,null,null,null,null,null,null,null,null,null,null,null,null,null,null,null,null,null,null,null,null,null,null,null,null,null,null,null,null,null,null,null,9,"A:R","Program Specific Assurances"]
["Chesapeake City Public Schools",136,null,25]
["Chesterfield County Public Schools",21,null,26]
["Clarke County Public Schools",22,null,27,null,11803.910000000002]
["Colonial Beach Town Public Schools",202,null,28]
["Colonial Heights City Public Schools",106,null,29,null,4552325.7399999993]
["Craig County Public Schools",23,null,30,null,112995.14]
["Culpeper County Public Schools",24,null,31]
["Cumberland County Public Schools",25,null,32,null,11095.68]
["Danville City Public Schools",108,null,33,null,12984.3]
["Department Of Juvenile Justice",917,null,34,null,139854.54999999999]
["Dickenson County Public Schools",26,null,35]
["Dinwiddie County Public Schools",27,null,36]
["Emporia City Public Schools",138,null,37]
["Essex County Public Schools",28,null,38]
["Fairfax City Public Schools",134,null,39,null,16997.64]
["Fairfax County Public Schools",29,null,40]
["Falls Church City Public Schools",109,null,41]
["Fauquier County Public Schools",30,null,42,null,54179.96]
["Floyd County Public Schools",31,null,43,null,595295.38]
["Fluvanna County Public Schools",32,null,44,null,48396.04]
["Franklin City Public Schools",135,null,45]
["Franklin County Public Schools",33,null,46]
["Frederick County Public Schools",34,null,47]
["Fredericksburg City Public Schools",110,null,48]
["Galax City Public Schools",111,null,49]
["Giles County Public Schools",35,null,50]
["Gloucester County Public Schools",36,null,51]
["Goochland County Public Schools",37,null,52]
["Grayson County Public Schools",38,null,53,null,1277655.45]
["Greene County Public Schools",39,null,54,null,18059.989999999998]
["Greensville County Public Schools",40,null,55,null,13574.5]
["Halifax County Public Schools",41,null,56]
["Hampton City Public Schools",112,null,57]
["Hanover County Public Schools",42,null,58]
["Harrisonburg City Public Schools",113,null,59]
["Henrico County Public Schools",43,null,60,null,54309.21]
["Henry County Public Schools",44,null,62]
["Highland County Public Schools",45,null,63]
["Hopewell City Public Schools",114,null,65,null,14754.89]
["Isle Of Wight County Public Schools",46,null,66]
["James City County Public Schools",47,null,67]
["James Madison University",871,null,68,null,26322.73]
["King And Queen County Public Schools",49,null,69]
["King George County Public Schools",48,null,70]
["King William County Public Schools",50,null,71,null,17823.91]
["Lancaster County Public Schools",51,null,72]
["Lee County Public Schools",52,null,73]
["Lexington City Public Schools",137,null,74,null,10387.44]
["Loudoun County Public Schools",53,null,75,null,2215830.4]
["Louisa County Public Schools",54,null,77]
["Lunenburg County Public Schools",55,null,78]
["Lynchburg City Public Schools",115,null,79]
["Madison County Public Schools",56,null,80,null,62314.979999999996]
["Manassas City Public Schools",143,null,81]
["Manassas Park City Public Schools",144,null,82,null,155883.23000000001]
["Martinsville City Public Schools",116,null,83]
["Mathews County Public Schools",57,null,84]
["Mecklenburg County Public Schools",58,null,85,null,51701.130000000005]
["Middlesex County Public Schools",59,null,86]
["Montgomery County Public Schools",60,null,87]
["Nelson County Public Schools",62,null,88,null,275980.68]
["New Kent County Public Schools",63,null,89,null,362003.17000000004]
["Newport News City Public Schools",117,null,90]
["Norfolk City Public Schools",118,null,91]
["Northampton County Public Schools",65,null,92]
["Northumberland County Public Schools",66,null,93,null,21129]
["Norton City Public Schools",119,null,94]
["Nottoway County Public Schools",67,null,95,null,11567.84]
["Orange County Public Schools",68,null,96]
["Page County Public Schools",69,null,97]
["Patrick County Public Schools",70,null,98,null,47231.040000000001]
["Petersburg City Public Schools",120,null,101,null,719814.52]
["Pittsylvania County Public Schools",71,null,102]
["Poquoson City Public Schools",142,null,103]
["Portsmouth City Public Schools",121,null,104,null,83308.899999999994]
["Powhatan County Public Schools",72,null,106,null,19122.330000000002]
["Prince Edward County Public Schools",73,null,108,null,27267.039999999997]
["Prince George County Public Schools",74,null,109,null,15109.01]
["Prince William County Public Schools",75,null,110,null,75663.08]
["Pulaski County Public Schools",77,null,111,null,24434.1]
["Radford City Public Schools",122,null,112,null,47117.909999999996]
["Rappahannock County Public Schools",78,null,113,null,286436.44999999995]
["Richmond City Public Schools",123,null,114,null,21129]
["Richmond County Public Schools",79,null,115,null,28211.35]
["Roanoke City Public Schools",124,null,116,null,15935.279999999999]
["Roanoke County Public Schools",80,null,117,null,228608.31]
["Rockbridge County Public Schools",81,null,118,null,183506.75]
["Rockingham County Public Schools",82,null,119]
["Russell County Public Schools",83,null,120,null,29863.899999999998]
["Salem City Public Schools",139,null,121,null,23942.77]
["Scott County Public Schools",84,null,122]
["Shenandoah County Public Schools",85,null,123,null,469893.62]
["Smyth County Public Schools",86,null,124,null,216557.29]
["Southampton County Public Schools",87,null,126,null,11803.910000000002]
["Spotsylvania County Public Schools",88,null,127,null,13338.42]
["Stafford County Public Schools",89,null,128,null,275662.65000000002]
["State Operated Programs",901,null,130,null,34074.399999999994]
["Staunton City Public Schools",126,null,131,null,85339.47]
["Suffolk City Public Schools",127,null,132,null,131638.93]
["Surry County Public Schools",90,null,134]
["Sussex County Public Schools",91,null,135]
["Tazewell County Public Schools",92,null,136,null,124885.39]
["Va Beach City Public Schools",128,null,137,null,19712.54]
["Va Dept Of Correctional Education",900,null,138]
["VSDB Staunton",218,null,139]
["Warren County Public Schools",93,null,142]
["Washington County Public Schools",94,null,143,null,356953.24]
["Waynesboro City Public Schools",130,null,144,null,156047.72]
["West Point Town Public Schools",207,null,202]
["Westmoreland County Public Schools",95,null,207]
["Williamsburg City Public Schools",131,null,218]
["Winchester City Public Schools",132,null,871]
["Wise County Public Schools",96,null,900]
["Wythe County Public Schools",97,null,901]
["York County Public Schools",98,null,917]